Cogmind - Beta 10.1 @@@ ROGUE MODE // 2021.07.08 @ 18:44:34 // Winter2019/RPGLIKE Player: Farfid Result: Destroyed by B1-SNK(L) with Centrium Claws Performance ------------- Evolutions (8) 4000 Regions Visited (30) 6000 Robots Destroyed (614) 3070 Value Destroyed (28471) 28471 Prototype IDs (79) 1580 Alien Tech Used (5) 1000 Bonus (23310) 23310 TOTAL SCORE: 67431 Bonus ------- Triggered High Security 500 High Alert Combat Kills 7494 Follower Combat Kills 3008 Network Hubs Disabled 800 Met Data Miner 300 Met Imprinter 300 Destroyed Z-Imprinter 1000 Triggered Deep Caves Wall 500 Exposed GOLEM Chamber 500 Met Warlord at Base 500 MAIN.C Attacked Warlord 500 Warlord Defense Kill 2734 Built Enhanced Grunts 300 A7 Reached Mainframe 300 Met R17 at Cetus 500 Used Core Reset Matrix 3000 Met Warlord at Research 2000 Scanned by Researcher 500 Pursued by Intercept 1000 Friendly Fire -2426 Cogmind --------- Core Integrity 0/1600 Matter 470/475 Energy 92/2700 System Corruption 0% Temperature Cool (57) Movement Hovering (55) Location -2/Research Parts ------- > --- POWER (2) -------- Vortex Chain Reactor > --- PROPULSION (4) --- Zionite Glidesys II Cooled Antigrav System Combat Antigrav System Combat Antigrav System > --- UTILITY (12) ----- Improved Heat Shielding Experimental Cooling System Superbattery Advanced Terrain Scanner Advanced Salvage Targeting Computer Experimental Targeting Computer Energy Filter Improved Weapon Cycler Experimental Thermal Shield Advanced Force Field > --- WEAPON (5) ------- Plasma Storm > --- INVENTORY (5) ---- Quantum Rifle Nova Cannon Peak State ------------ > --- POWER ------------ Vortex Chain Reactor > --- PROPULSION ------- Zionite Glidesys II Cooled Antigrav System Combat Antigrav System Combat Antigrav System > --- UTILITY ---------- Improved Heat Shielding Experimental Cooling System Superbattery Advanced Terrain Scanner Advanced Salvage Targeting Computer Experimental Targeting Computer Energy Filter Improved Weapon Cycler Reaction Control System Centrium Medium Armor Plating Experimental Thermal Shield Advanced Force Field > --- WEAPON ----------- Plasma Storm > --- INVENTORY -------- Advanced Powered Armor Makeshift System Restoration Module Nova Cannon [Rating: 175] Favorites ----------- Power Light Antimatter Reactor Engine Light Angular Momentum Engine Power Core Enhanced Nuclear Core Reactor Light Antimatter Reactor Propulsion Combat Airjet Wheel Armored Wheel Hover Unit Combat Airjet Utility Advanced Terrain Scanner Device Advanced Terrain Scanner Storage Superbattery Processor Experimental Targeting Computer Protection Layered Medium Armor Plating Weapon Gatling Laser Energy Gun Gatling Laser Energy Cannon Cooled Plasma Cannon Ballistic Gun KE Penetrator Launcher Rocket Launcher Build | -11 -10 -10 -9 -9 -8 -7 -7 -7 -7 -6 -6 -6 -6 -6 -6 -5 -5 -5 -5 -5 -5 -4 -4 -4 -4 -3 -3 -3 -3 -2 ------- Run | Scr Mat Min Mat Min Mat Fac Low Low Dat Pro Fac Low Low Zio Dee Pro Fac Ext Cet Arc Hub Fac Upp Upp War Pro Res Qua Sec Res Slots Evolved 19 | 2 . . 3 . 1 4 1 1 . . 4 . . 1 . . . . . . . . . . 1 . . . 1 . Power 1 | . . . . . . 1 . . . . . . . . . . . . . . . . . . . . . . . . Propulsion 3 | 1 . . . . . . . . . . 2 . . . . . . . . . . . . . . . . . . . Utility 11 | . . . 1 . . 3 1 1 . . 2 . . 1 . . . . . . . . . . 1 . . . 1 . Weapon 4 | 1 . . 2 . 1 . . . . . . . . . . . . . . . . . . . . . . . . . Parts Attached 187 | 5 1 2 10 2 7 20 1 5 . 2 25 6 . 5 8 9 5 6 3 . 8 8 1 6 7 . 4 . 20 11 Power 13 | 1 . . . . 1 4 . . . . 2 2 . . . 1 . . 1 . . . . . 1 . . . . . Engine 6 | 1 . . . . 1 3 . . . . . 1 . . . . . . . . . . . . . . . . . . Core 4 | . . . . . . 1 . . . . 1 1 . . . 1 . . . . . . . . . . . . . . Reactor 3 | . . . . . . . . . . . 1 . . . . . . . 1 . . . . . 1 . . . . . Propulsion 23 | 2 . 1 2 . . . . . . . 7 . . . 4 . . . . . 4 2 . . 1 . . . . . Treads . | . . . . . . . . . . . . . . . . . . . . . . . . . . . . . . . Leg . | . . . . . . . . . . . . . . . . . . . . . . . . . . . . . . . Wheel 7 | 2 . 1 2 . . . . . . . 2 . . . . . . . . . . . . . . . . . . . Hover 16 | . . . . . . . . . . . 5 . . . 4 . . . . . 4 2 . . 1 . . . . . Flight . | . . . . . . . . . . . . . . . . . . . . . . . . . . . . . . . Utility 86 | . . 1 1 . 1 7 1 5 . 1 12 2 . 5 4 8 4 . . . . 6 1 4 4 . 4 . 8 7 Device 53 | . . . 1 . . 4 1 3 . . 9 2 . . 4 4 3 . . . . 5 1 3 4 . 3 . 5 1 Storage 4 | . . . . . . . . . . . . . . . . 1 . . . . . 1 . 1 . . 1 . . . Processor 7 | . . . . . . 1 . 1 . . . . . 4 . . 1 . . . . . . . . . . . . . Hackware . | . . . . . . . . . . . . . . . . . . . . . . . . . . . . . . . Protection 22 | . . 1 . . 1 2 . 1 . 1 3 . . 1 . 3 . . . . . . . . . . . . 3 6 Artifact . | . . . . . . . . . . . . . . . . . . . . . . . . . . . . . . . Weapon 65 | 2 1 . 7 2 5 9 . . . 1 4 2 . . . . 1 6 2 . 4 . . 2 1 . . . 12 4 Energy Gun 33 | 1 1 . 2 1 4 5 . . . . 1 . . . . . . 3 1 . 3 . . 1 1 . . . 6 3 Energy Cannon 19 | . . . 3 . . 4 . . . 1 2 . . . . . . . 1 . 1 . . . . . . . 6 1 Ballistic Gun 3 | 1 . . . . . . . . . . . . . . . . . 1 . . . . . 1 . . . . . . Ballistic Cannon . | . . . . . . . . . . . . . . . . . . . . . . . . . . . . . . . Launcher 10 | . . . 2 1 1 . . . . . 1 2 . . . . 1 2 . . . . . . . . . . . . Special Weapon . | . . . . . . . . . . . . . . . . . . . . . . . . . . . . . . . Impact Weapon . | . . . . . . . . . . . . . . . . . . . . . . . . . . . . . . . Slashing Weapon . | . . . . . . . . . . . . . . . . . . . . . . . . . . . . . . . Piercing Weapon . | . . . . . . . . . . . . . . . . . . . . . . . . . . . . . . . Special Melee Weapon . | . . . . . . . . . . . . . . . . . . . . . . . . . . . . . . . Unidentified Prototypes 34 | . . . . . 4 1 . 1 . . 3 . . 3 4 3 . 1 1 . 1 . . . 4 . 1 . 6 1 Parts Lost 3 | . . . . . 1 . . . . . . . . . . . . . . . . . 1 . . . . . . 1 Power . | . . . . . . . . . . . . . . . . . . . . . . . . . . . . . . . Propulsion . | . . . . . . . . . . . . . . . . . . . . . . . . . . . . . . . Utility 1 | . . . . . . . . . . . . . . . . . . . . . . . . . . . . . . 1 Weapon 2 | . . . . . 1 . . . . . . . . . . . . . . . . . 1 . . . . . . . Highest Loss Streak 1 | . . . . . 1 . . . . . . . . . . . . . . . . . 1 . . . . . . 1 Average Slot Usage (%) 94 | . 83 88 98 100 99 99 100 94 100 100 99 100 100 99 100 100 100 100 100 100 99 100 98 99 83 77 76 77 75 77 Engine 3 | . 16 16 13 11 10 10 6 6 6 6 2 . . . . . . . . . . . . . . . . . . . Core 3 | . . . . . . 1 6 6 6 6 5 4 5 4 4 4 4 4 4 4 4 4 4 4 1 . . . . . Reactor 2 | . . . . . . . . . . . 2 5 5 4 4 4 4 4 4 4 4 4 4 4 4 4 4 4 4 4 Wheel 6 | . 33 33 27 22 21 16 13 12 12 12 5 . . . . . . . . . . . . . . . . . . . Hover 11 | . . . . . . . . . . . 10 20 20 19 19 19 19 19 19 19 19 19 19 19 18 18 18 18 17 17 Device 26 | . . . 1 11 10 13 23 22 25 25 29 30 30 28 28 28 32 33 33 33 33 32 32 32 34 36 35 36 36 34 Processor 10 | . . . . . . 7 6 11 12 12 10 10 10 13 14 14 14 14 14 14 14 14 14 14 13 13 9 9 8 8 Protection 3 | . . 5 13 11 10 8 6 3 6 6 5 5 5 4 4 3 . . . . . . . . . . . . . 3 Energy Gun 15 | . 25 33 12 22 29 29 20 18 18 18 15 15 15 14 14 14 14 13 14 14 13 14 12 9 6 4 4 4 3 4 Energy Cannon 4 | . . . 17 11 3 3 6 6 6 6 5 5 5 4 4 4 4 4 3 4 4 4 4 4 1 . . . . . Launcher 4 | . . . 9 11 10 8 6 6 6 6 5 5 5 4 4 4 4 4 4 4 4 4 4 4 1 . . . . . Naked Turns . | . . . . . . . . . . . . . . . . . . . . . . . . . . . . . . . Heaviest Build 106 | 7 8 11 20 23 33 55 53 53 53 54 71 71 71 71 71 71 66 65 72 72 72 75 72 77 83 77 91 91 106 106 Greatest Support 123 | 31 31 31 29 29 29 29 29 29 29 29 105 93 93 93 99 99 99 99 99 99 105 118 118 118 118 113 113 123 113 113 Greatest Overweight (x) 11 | . . . . . 1 1 1 1 1 1 4 . . . . . . . . . . . . . . . . . 11 . Average Overweight (x) . | . . . . . . 1 1 1 1 1 . . . . . . . . . . . . . . . . . . . . Largest Inventory Capacity 5 | 1 1 1 1 2 3 4 4 4 4 4 4 4 4 4 4 4 4 4 4 4 4 5 5 5 5 5 5 5 5 5 Average Capacity 4 | 1 1 1 1 1 2 3 4 4 4 4 4 4 4 4 4 4 4 4 4 4 4 4 5 5 5 5 5 5 5 5 Most Carried 5 | . . 1 1 2 2 4 4 4 3 4 4 4 4 4 4 4 4 4 4 4 4 5 5 5 5 5 5 5 4 4 Average Carried 3 | . . . . 1 2 2 3 3 3 2 3 3 4 4 3 3 3 4 4 4 4 4 3 4 4 5 4 3 2 2 Final Capacity 5 | 1 1 1 1 2 3 4 4 4 4 4 4 4 4 4 4 4 4 4 4 4 4 5 5 5 5 5 5 5 5 5 Final Carried 5 | . . . . 2 2 4 4 3 3 3 3 4 4 4 4 4 4 4 4 4 4 5 4 4 5 5 4 3 2 2 Class Distribution -------------------- 34% | Scavenger-Gunner 17% | Gunner 13% | Hacker-Gunner 10% | Scavenger-Mutant 5% | Tank 5% | Hacker-Tank 4% | Mutant 3% | Bomber Dominant Class ---------------- Mutant | -10/Materials Mutant | -10/Mines Mutant | -9/Materials Tank | -9/Mines Tank | -8/Materials Bomber | -7/Factory Gunner | -7/Lower Caves Gunner | -7/Lower Caves Gunner | -7/Data Miner Scavenger-Gunner | -6/Proximity Caves Scavenger-Gunner | -6/Factory Scavenger-Gunner | -6/Lower Caves Scavenger-Gunner | -6/Lower Caves Scavenger-Gunner | -6/Zion Scavenger-Gunner | -6/Deep Caves Scavenger-Gunner | -5/Proximity Caves Scavenger-Gunner | -5/Factory Scavenger-Gunner | -5/Extension Commander-Mutant | -5/Cetus Commander-Gunner | -5/Archives Commander-Mutant | -5/Hub_04(d) Scavenger-Gunner | -4/Factory Scavenger-Gunner | -4/Upper Caves Scavenger-Gunner | -4/Upper Caves Hacker-Gunner | -4/Warlord Hacker-Gunner | -3/Proximity Caves Hacker-Gunner | -3/Research Hacker-Gunner | -3/Quarantine Hacker-Gunner | -3/Section 7 Hacker-Tank | -2/Research Resources | -11 -10 -10 -9 -9 -8 -7 -7 -7 -7 -6 -6 -6 -6 -6 -6 -5 -5 -5 -5 -5 -5 -4 -4 -4 -4 -3 -3 -3 -3 -2 ----------- Run | Scr Mat Min Mat Min Mat Fac Low Low Dat Pro Fac Low Low Zio Dee Pro Fac Ext Cet Arc Hub Fac Upp Upp War Pro Res Qua Sec Res Matter Collected 5355 | 250 17 20 130 108 103 296 117 2040 . 277 256 60 36 50 114 140 57 47 50 21 80 200 38 197 130 . 40 6 273 202 Remotely . | . . . . . . . . . . . . . . . . . . . . . . . . . . . . . . . Salvage Created 30140 | . 119 93 165 292 638 1730 162 1388 . 279 1691 1613 840 . 472 1056 394 1398 36 . 2154 2462 573 1453 1550 1232 1502 345 2125 4378 Parts 1253 | . 4 2 10 30 49 78 15 36 . 11 67 52 33 . 11 56 17 64 . . 71 114 21 50 60 44 34 40 104 180 Haulers Intercepted 23 | . 1 . . . 3 5 . . . . 2 . . . . 1 1 3 . . 3 1 . . . . 3 . . . Recyclers Shooed 3 | . . . . . . . . . . . . . . . . . . 1 . . 1 . . . . . . . 1 . Parts Field Recycled . | . . . . . . . . . . . . . . . . . . . . . . . . . . . . . . . Retrieved Matter . | . . . . . . . . . . . . . . . . . . . . . . . . . . . . . . . Parts Self-Destructed 332 | . . . . . . . 12 45 . 21 . 46 19 . . 47 . . . . . . 16 25 70 31 . . . . Prevented 63 | . . . . . . . . . . . . . 14 . . 6 . . . . . . 5 18 20 . . . . . Kills | -11 -10 -10 -9 -9 -8 -7 -7 -7 -7 -6 -6 -6 -6 -6 -6 -5 -5 -5 -5 -5 -5 -4 -4 -4 -4 -3 -3 -3 -3 -2 ------- Run | Scr Mat Min Mat Min Mat Fac Low Low Dat Pro Fac Low Low Zio Dee Pro Fac Ext Cet Arc Hub Fac Upp Upp War Pro Res Qua Sec Res Combat Hostiles Destroyed 500 | . 2 5 9 14 20 32 7 21 . 11 24 26 18 . 21 26 5 13 . . 7 34 10 25 29 22 8 9 34 68 Guns 181 | . 2 5 1 2 9 22 4 11 . 4 16 20 13 . 8 13 3 8 . . 4 16 7 8 . 2 . . . 3 Cannons 42 | . . . 1 5 3 2 1 3 . 2 3 6 . . . 8 2 2 . . 1 1 1 1 . . . . . . AOE 228 | . . . 7 7 8 6 2 5 . 2 4 . 3 . 13 2 . 1 . . . 11 . 15 27 19 5 9 28 54 Classes Destroyed 32 | . 2 2 3 2 . 7 . 3 . . 1 . . . 1 . . . . . . 1 . . 1 . . . 2 7 Worker 33 | . . . . . . 1 . . . . 2 . . . . . . 1 . . 15 5 . . . . 7 1 . 1 Builder 21 | . . . 1 . 1 . . . . . 2 . . . . . . 3 . . 8 1 . . . . 1 3 . 1 Tunneler 6 | . . 1 1 1 . . . . . . 1 . . . . . . . . . . 1 . . . . 1 . . . Hauler 23 | . 1 . . . 3 5 . . . . 2 . . . . 1 1 3 . . 3 1 . . . . 3 . . . Recycler 10 | . . . . 1 1 4 . . . . 1 . . . . . . . . . 3 . . . . . . . . . Minesweeper 1 | . . . . . . . . 1 . . . . . . . . . . . . . . . . . . . . . . Mechanic 1 | . . . . . . . . 1 . . . . . . . . . . . . . . . . . . . . . . Operator 4 | . . . . . . 1 . . . . . . . . . . . . . . 1 . . . . . . . 2 . Watcher 9 | . . . . . . 1 . . . . 1 . . . . . 1 1 1 . 1 1 . . . . 1 1 . . Swarmer 109 | . . . 6 10 14 5 4 2 . 3 . 2 6 . . 4 . 3 . . . 7 2 14 5 7 . . 3 12 Saboteur 3 | . . . . . . . . . . . . . . . . . . . . . . 1 . . 2 . . . . . Grunt 159 | . 2 . 2 2 4 11 3 12 . 4 17 14 9 . . 15 3 2 . . 1 11 7 2 9 11 3 4 8 3 Brawler 15 | . . . . . . 6 . . . . . . 2 . . 1 . . . . . 2 . 1 1 1 . . . 1 Duelist 17 | . . . . 2 . . . 4 . 1 . 2 . . . 1 . . . . 1 1 . 3 1 1 . . . . Protector 2 | . . . . . . 1 . . . . . . . . . . . . . . . . . . 1 . . . . . Researcher 1 | . . . . . . . . . . . . . . . . . . . . . . . . . . . . . 1 . Sentry 42 | . . . 1 . 2 4 . 1 . 1 2 1 1 . . 1 . 4 . . 4 8 1 2 . 1 3 . 4 1 Specialist 2 | . . . . . . . . . . . . . . . . . . . . . . . . . 2 . . . . . Hunter 31 | . . . . . . 3 . 1 . 1 4 2 . . . 1 . . . . . . . 2 . . . 5 8 4 Programmer 28 | . . . . . . 2 . 1 . 1 . 1 . . . 2 2 2 . . . 3 . . 1 . 2 . 7 4 Behemoth 11 | . . . . . . . . . . . 1 1 . . . 1 . 2 . . 1 1 . 1 . 1 . . 1 1 Enhanced Grunt 1 | . . . . . . . . . . . . . . . . . . . . . 1 . . . . . . . . . Tracker 1 | . . . . . . . . . . . . . . . . . . . . . . . . . . . . . 1 . Striker 2 | . . . . . . . . . . . . . . . . . . . . . . . . . . . . . . 2 Executioner 8 | . . . . . . . . . . . . . . . . . . . . . . . . . . . . . . 8 Alpha 7 2 | . . . . . . . . . . . . . . . . . . . . . . . . . . . . . 2 . Z-Light 2 | . . . . . . . . . . . . . . . 2 . . . . . . . . . . . . . . . Assembled 24 | . . 5 . . . . . . . . . . . . 19 . . . . . . . . . . . . . . . Wasp 6 | . . . . . . . . . . . . . . . . . . . . . . . . . . . . . . 6 Thug 11 | . . . . . . . . . . . . 3 . . . . . . . . . . . . 3 . . . . 5 Savage 1 | . . . . . . . . . . . . . . . . . . . . . . . . . . . . . . 1 Butcher 2 | . . . . . . . . . . . . . . . . . . . . . 2 . . . . . . . . . Martyr 5 | . . . . . . . . . . . . . . . . . . . . . . . . . . . . . . 5 Guerrilla 1 | . . . . . . . . . . . . . . . . . . . . . . . . . . . . . . 1 Wizard 2 | . . . . . . . . . . . . . . . . . . . . . . . . . . . . . . 2 Fireman 5 | . . . . . . . . . . . . . . . . . . . . . . . . . . . . . . 5 Mutant 7 | . . . . . . . . 1 . . . . . . . . . . . . . . . . 3 . . . . 3 Commander 3 | . . . . . . . . . . . . . . . . . . . . . . . . . 2 . . . . 1 Knight 1 | . . . . . . . . . . . . . . . . . . . . . . . . . . . . . . 1 Troll 1 | . . . . . . . . . . . . . . . . . . . . . . . . . . . . . . 1 Hydra 1 | . . . . . . . . . . . . . . . . . . . . . . . . . . . . . . 1 Best Kill Streak 21 | . 2 5 6 5 10 9 4 8 . 3 6 13 4 . 16 6 3 4 1 . 21 13 7 7 12 17 8 10 11 14 Combat Bots Only 17 | . 2 5 5 4 5 8 4 8 . 3 3 13 4 . 16 6 3 3 . . 3 11 7 7 12 17 5 6 11 14 Max Kills in Single Turn 17 | . 1 2 4 3 3 3 2 3 . 2 5 2 2 . 5 2 2 2 1 . 17 4 2 4 5 5 4 4 3 5 Gunslinging 1 | . . 1 . . 1 . 1 . . . . . . . . . . . . . . . 1 . . . . . . . Exploded 5 | . . . 3 2 3 3 2 3 . 2 3 . 2 . 5 1 . 1 . . . 3 . 4 5 5 3 3 2 4 Melee . | . . . . . . . . . . . . . . . . . . . . . . . . . . . . . . . Uniques/NPCs Destroyed 1 | . . . . . . . . . . . . . . . 1 . . . . . . . . . . . . . . . Z-Imprinter (-6/Deep Caves) Combat | -11 -10 -10 -9 -9 -8 -7 -7 -7 -7 -6 -6 -6 -6 -6 -6 -5 -5 -5 -5 -5 -5 -4 -4 -4 -4 -3 -3 -3 -3 -2 -------- Run | Scr Mat Min Mat Min Mat Fac Low Low Dat Pro Fac Low Low Zio Dee Pro Fac Ext Cet Arc Hub Fac Upp Upp War Pro Res Qua Sec Res Damage Taken 15996 | . 99 176 262 215 484 930 152 409 . 861 693 921 368 . 866 655 18 328 163 . 967 697 468 562 389 343 257 228 1214 3271 Core 11845 | . 79 153 207 160 337 652 102 278 . 632 468 645 289 . 606 471 16 256 139 . 786 542 361 434 302 274 203 179 913 2361 Absorbed by Shields 6258 | . . . . . . . . . . . . . . . . . 7 49 59 . 315 253 175 203 145 127 259 239 1272 3155 Redirected to Core 10527 | . 66 74 150 142 307 622 102 259 . 588 439 589 210 . 545 442 7 243 85 . 642 511 337 434 265 220 192 168 805 2083 Core Remaining (%) 80 | 100 . 93 . 86 99 . . . . 100 . . . . . 100 . . . . 21 . . . . 90 . . 33 . Volleys Fired 869 | . 13 17 14 23 33 69 10 35 . 18 55 31 25 9 26 45 20 24 9 1 47 44 18 33 22 24 21 7 74 102 Largest 4 | . 2 2 3 3 4 4 4 4 . 4 4 4 4 1 4 4 4 4 3 3 4 4 4 4 1 1 1 1 1 1 Hottest 300 | . 90 90 180 189 222 295 270 270 . 270 275 275 275 35 275 275 275 275 240 240 275 275 275 228 300 300 300 300 300 300 Shots Fired 2000 | . 24 34 29 53 94 245 30 117 . 63 164 124 70 9 63 141 47 81 21 3 99 121 42 76 22 24 21 7 74 102 Gun 1541 | . 24 34 20 30 78 208 21 98 . 50 112 93 51 . 54 105 27 60 18 3 54 78 31 52 22 24 21 7 66 100 Cannon 378 | . . . 6 15 13 34 6 16 . 12 52 31 13 9 2 29 19 20 . . 44 29 7 11 . . . . 8 2 Launcher 81 | . . . 3 8 3 3 3 3 . 1 . . 6 . 7 7 1 1 3 . 1 14 4 13 . . . . . . Special . | . . . . . . . . . . . . . . . . . . . . . . . . . . . . . . . Kinetic 21 | . 7 . . . . . . . . . . . . . . . . . . . . . . 14 . . . . . . Thermal 1846 | . 17 34 26 45 91 190 27 114 . 62 164 124 64 9 56 134 46 80 18 3 98 107 38 49 22 24 21 7 74 102 Explosive 24 | . . . 3 8 3 3 3 3 . 1 . . . . . . . . . . . . . . . . . . . . Electromagnetic 109 | . . . . . . 52 . . . . . . 6 . 7 7 1 1 3 . 1 14 4 13 . . . . . . Robot Hit Streak 66 | . 10 11 13 16 21 35 19 38 . 42 44 52 34 . 35 39 22 51 29 9 57 44 66 42 44 55 30 22 40 48 Robot Miss Streak 5 | . 1 3 2 3 2 3 1 3 . 3 2 2 2 . 4 1 2 2 1 . 2 2 1 1 1 1 2 1 5 3 Penetration Max . | . . . . . . . . . . . . . . . . . . . . . . . . . . . . . . . Secondary Targets 12 | . 1 1 . . 2 2 1 . . . . . 2 . 1 . . . . . . . 1 1 . . . . . . Max Gunslinging Chain 1 | . 1 1 . . 1 1 1 . . . . . 1 . 1 . . . . . . . 1 1 . . . . . . Shots Hit Robots 1438 | . 19 19 23 28 57 182 22 89 . 53 116 98 59 . 56 92 25 61 21 3 63 97 37 59 15 15 14 3 43 69 Core Hits 1862 | . 6 11 14 21 33 99 15 70 . 36 85 75 43 . 75 83 19 55 25 5 81 111 29 65 121 73 51 38 138 385 Critical Hits 8 | . 1 . . . . . . 1 . . . 2 . . . . . . . . 1 . . 3 . . . . . . Critical Kills 1 | . . . . . . . . 1 . . . . . . . . . . . . . . . . . . . . . . Critical Parts Destroyed 7 | . 1 . . . . . . . . . . 2 . . . . . . . . 1 . . 3 . . . . . . Melee Attacks . | . . . . . . . . . . . . . . . . . . . . . . . . . . . . . . . Impact . | . . . . . . . . . . . . . . . . . . . . . . . . . . . . . . . Slashing . | . . . . . . . . . . . . . . . . . . . . . . . . . . . . . . . Piercing . | . . . . . . . . . . . . . . . . . . . . . . . . . . . . . . . Sneak Attacks . | . . . . . . . . . . . . . . . . . . . . . . . . . . . . . . . Combat Hostiles . | . . . . . . . . . . . . . . . . . . . . . . . . . . . . . . . Follow-up Attacks . | . . . . . . . . . . . . . . . . . . . . . . . . . . . . . . . Damage Inflicted 86470 | . 212 208 927 1057 1355 4202 741 2117 . 1468 4369 3242 2076 . 2424 3107 841 2533 990 132 4840 4523 1403 3151 6513 3792 2156 1935 9119 17037 Guns 25449 | . 212 208 236 217 728 2972 322 1447 . 922 2339 1962 1060 . 1071 1402 460 1589 551 132 1205 1966 898 1471 183 190 199 42 542 923 Cannons 9887 | . . . 84 247 184 694 170 427 . 349 1250 1280 463 . 45 1022 308 843 . . 866 919 275 461 . . . . . . Explosions 51134 | . . . 607 593 443 536 249 243 . 197 780 . 553 . 1308 683 73 101 439 . 2769 1638 230 1219 6330 3602 1957 1893 8577 16114 Melee . | . . . . . . . . . . . . . . . . . . . . . . . . . . . . . . . Ramming . | . . . . . . . . . . . . . . . . . . . . . . . . . . . . . . . Kinetic 320 | . 47 . . . . . . . . . . . . . . . . . . . . . . 273 . . . . . . Thermal 74275 | . 165 208 320 464 912 3253 492 1874 . 1271 4369 3242 1523 . 1116 2523 768 2432 551 132 2125 2984 1173 1826 6513 3792 2156 1935 9119 17037 Explosive 2778 | . . . 607 593 443 446 249 243 . 197 . . . . . . . . . . . . . . . . . . . . Electromagnetic 9097 | . . . . . . 503 . . . . . . 553 . 1308 584 73 101 439 . 2715 1539 230 1052 . . . . . . Impact . | . . . . . . . . . . . . . . . . . . . . . . . . . . . . . . . Slashing . | . . . . . . . . . . . . . . . . . . . . . . . . . . . . . . . Piercing . | . . . . . . . . . . . . . . . . . . . . . . . . . . . . . . . Highest Corruption 10 | . . . . . . 9 9 9 9 10 1 2 2 2 . 1 . . . . 8 1 1 1 2 . 2 3 3 . Average Corruption 4 | . . . . . . 5 9 9 9 9 1 1 2 2 . 1 . . . . 4 1 1 1 1 . 2 2 1 . Corruption Purged 3 | . . . . . . . . . . . . . . . . . . . . . . . . . . . . . 3 . Effects 229 | . . . . . . 41 26 73 2 44 2 7 11 1 . 3 . . . . 3 2 4 2 . . 1 4 3 . Message Errors 56 | . . . . . . 5 8 18 . 6 . 5 5 . . 1 . . . . 1 1 2 . . . 1 2 1 . Matter Fused 51 | . . . . . . 7 11 14 1 15 . . . . . . . . . . 2 . . . . . . 1 . . Heat Flow Errors 11 | . . . . . . 3 2 2 1 2 . . 1 . . . . . . . . . . . . . . . . . Energy Discharges 21 | . . . . . . 2 4 9 . . . . 3 1 . . . . . . . . . 2 . . . . . . Parts Rejected 1 | . . . . . . 1 . . . . . . . . . . . . . . . . . . . . . . . . Data Loss (minor) 24 | . . . . . . 4 1 8 . 2 1 2 1 . . 1 . . . . . . 1 . . . . 1 2 . Data Loss (major) 9 | . . . . . . 2 . 4 . 3 . . . . . . . . . . . . . . . . . . . . Misfires 7 | . . . . . . 2 . 3 . 2 . . . . . . . . . . . . . . . . . . . . Misdirections 6 | . . . . . . . . . . 6 . . . . . . . . . . . . . . . . . . . . Targeting Errors 38 | . . . . . . 13 . 15 . 5 1 . 1 . . 1 . . . . . 1 1 . . . . . . . Weapon Failures 5 | . . . . . . 2 . . . 3 . . . . . . . . . . . . . . . . . . . . Overload Shots . | . . . . . . . . . . . . . . . . . . . . . . . . . . . . . . . Overflow Damage 956 | . . . 31 11 . 11 32 . . . 38 38 4 . 54 8 . 16 37 . 220 25 32 41 35 34 5 50 70 164 Projectiles 150 | . . . . 11 . . 10 . . . 14 38 . . . . . 16 . . 23 1 32 5 . . . . . . Explosions 806 | . . . 31 . . 11 22 . . . 24 . 4 . 54 8 . . 37 . 197 24 . 36 35 34 5 50 70 164 Melee . | . . . . . . . . . . . . . . . . . . . . . . . . . . . . . . . Knockbacks . | . . . . . . . . . . . . . . . . . . . . . . . . . . . . . . . Impact . | . . . . . . . . . . . . . . . . . . . . . . . . . . . . . . . Kinetic . | . . . . . . . . . . . . . . . . . . . . . . . . . . . . . . . Secondary . | . . . . . . . . . . . . . . . . . . . . . . . . . . . . . . . Self-Inflicted Damage 1139 | . . . . 41 . 69 . 28 . 49 . . 8 . . . . . . . 405 . . . 17 . 47 . 197 278 Shots 45 | . . . . 2 . 2 . 1 . 1 . . 1 . . . . . . . 4 . . . 1 . 3 . 13 17 Rammed . | . . . . . . . . . . . . . . . . . . . . . . . . . . . . . . . Targets Rammed . | . . . . . . . . . . . . . . . . . . . . . . . . . . . . . . . Kicked . | . . . . . . . . . . . . . . . . . . . . . . . . . . . . . . . Crushed . | . . . . . . . . . . . . . . . . . . . . . . . . . . . . . . . Highest Temperature 210 | . 1 22 183 198 197 194 188 198 87 199 198 199 197 . 195 198 195 210 156 75 198 199 197 198 199 199 196 . 120 120 Average Temperature 89 | . 1 14 65 98 84 52 104 77 62 93 105 123 108 . 110 110 93 86 60 42 89 105 118 111 106 111 66 . 49 47 Received Heat Transfer 2647 | . 57 20 90 30 198 315 54 135 . 180 237 321 120 . 105 231 12 96 30 . 45 151 142 78 . . . . . . Siege Activations . | . . . . . . . . . . . . . . . . . . . . . . . . . . . . . . . Robots Corrupted 14 | . . . . . . . . . . . . . . . . 2 . . . . 3 7 1 1 . . . . . . Combat Hostiles 11 | . . . . . . . . . . . . . . . . 2 . . . . 1 6 1 1 . . . . . . Parts Fried 59 | . . . . . . 1 . . . . . . 2 . . 4 . 3 3 . 19 13 2 8 1 . . . . 3 Impact Corruptions . | . . . . . . . . . . . . . . . . . . . . . . . . . . . . . . . Robots Melted 41 | . . . . . . 3 . 2 . 3 1 . 2 . . 1 . 2 . . 1 . 1 . 2 1 5 . 6 11 Combat Hostiles 38 | . . . . . . 2 . 2 . 3 1 . 2 . . 1 . 2 . . 1 . 1 . 2 1 3 . 6 11 Parts Melted 422 | . . . 6 2 4 18 2 13 . 11 16 18 12 . 1 10 8 22 . . 17 26 16 12 9 18 28 4 77 72 Heat Transferred 108257 | . 422 569 740 999 1924 6141 972 3773 . 2519 6428 5125 2525 . 1984 3825 1050 3525 975 225 3025 4350 1850 2775 7721 5401 3565 2369 12475 21005 Parts Sabotaged . | . . . . . . . . . . . . . . . . . . . . . . . . . . . . . . . Parts Stolen . | . . . . . . . . . . . . . . . . . . . . . . . . . . . . . . . Parts Stripped . | . . . . . . . . . . . . . . . . . . . . . . . . . . . . . . . Power Chain Reactions 11 | . . . . . . 2 . . . . . . . . 1 1 . . . . 2 3 . 2 . . . . . . Missiles Intercepted . | . . . . . . . . . . . . . . . . . . . . . . . . . . . . . . . Alert | -11 -10 -10 -9 -9 -8 -7 -7 -7 -7 -6 -6 -6 -6 -6 -6 -5 -5 -5 -5 -5 -5 -4 -4 -4 -4 -3 -3 -3 -3 -2 ------- Run | Scr Mat Min Mat Min Mat Fac Low Low Dat Pro Fac Low Low Zio Dee Pro Fac Ext Cet Arc Hub Fac Upp Upp War Pro Res Qua Sec Res Peak Influence 2623 | . 76 71 299 516 660 820 . . . . 1767 . . . . . 659 532 566 404 2623 2352 . . . . 635 298 759 796 Initial 1285 | . . 29 27 116 122 242 . . . . 65 . . . . . 258 150 251 218 141 1285 . . . . 225 . 25 148 Average 533 | . 36 50 144 341 466 545 . . . . 790 . . . . . 462 216 424 362 964 1646 . . . . 396 76 342 349 Maximum Alert Level 5 | . . . 1 2 2 3 . . . . 5 . . . . . 2 2 2 2 5 5 . . . . 2 1 3 3 Low Security (%) 19 | 100 100 100 59 17 6 . . . . . 2 . . . . . . 64 . . 9 . . . . . 2 90 24 20 Level 1 27 | . . . 40 63 14 29 . . . . 21 . . . . . 25 10 68 32 20 . . . . . 55 9 45 36 Level 2 33 | . . . . 19 78 48 . . . . 33 . . . . . 74 25 31 67 13 . . . . . 41 . 27 42 Level 3 7 | . . . . . . 21 . . . . 15 . . . . . . . . . 28 . . . . . . . 2 . Level 4 5 | . . . . . . . . . . . 16 . . . . . . . . . 5 47 . . . . . . . . Level 5 4 | . . . . . . . . . . . 11 . . . . . . . . . 23 21 . . . . . . . . High Security 1 | . . . . . . . . . . . . . . . . . . . . . . 30 . . . . . . . . Max Security . | . . . . . . . . . . . . . . . . . . . . . . . . . . . . . . . Squads Dispatched 80 | . 1 . . . 5 10 . 1 . 1 20 . . . . . 4 2 . . 5 8 . 1 . . 7 1 10 4 Investigation 22 | . 1 . . . 2 2 . . . 1 12 . . . . . 2 1 . . . . . . . . 1 . . . Extermination 10 | . . . . . . 2 . . . . 3 . . . . . 1 . . . . . . . . . 1 . 3 . Reinforcement 25 | . . . . . 1 4 . . . . 4 . . . . . 1 1 . . 2 . . . . . 3 1 5 3 Assault 14 | . . . . . . 2 . 1 . . 1 . . . . . . . . . 2 5 . 1 . . 2 . . . Garrison 6 | . . . . . 2 . . . . . . . . . . . . . . . 1 3 . . . . . . . . Intercept 3 | . . . . . . . . . . . . . . . . . . . . . . . . . . . . . 2 1 Construction Impeded 6 | . . . . . . . . . . . 1 . . . . . . . . . 1 . . . . . 2 . 2 . Haulers Reinforced 2 | . . . . . . . . . . . . . . . . . . . . . . . . . . . 1 . . 1 Stealth | -11 -10 -10 -9 -9 -8 -7 -7 -7 -7 -6 -6 -6 -6 -6 -6 -5 -5 -5 -5 -5 -5 -4 -4 -4 -4 -3 -3 -3 -3 -2 --------- Run | Scr Mat Min Mat Min Mat Fac Low Low Dat Pro Fac Low Low Zio Dee Pro Fac Ext Cet Arc Hub Fac Upp Upp War Pro Res Qua Sec Res Distress Signals 31 | . . . 2 . 1 . . . . . 1 . . . . . . 2 2 . 7 . . . . . 3 1 3 9 Communications Jammed . | . . . . . . . . . . . . . . . . . . . . . . . . . . . . . . . Distress Signals . | . . . . . . . . . . . . . . . . . . . . . . . . . . . . . . . Times Spotted 786 | . 4 15 14 12 24 45 7 27 . 14 39 24 18 . 52 30 12 21 11 4 30 48 10 19 71 23 16 14 51 131 Peak Tracking Total 38 | . 3 13 7 4 6 6 4 9 . 4 6 7 4 . 38 5 3 5 5 2 16 12 7 7 17 7 8 8 9 17 Tactical Retreats 42 | . . 2 1 . 2 2 . 1 . . 1 1 . . 2 3 1 1 . . 1 . . . 1 . 2 . 3 18 Traps | -11 -10 -10 -9 -9 -8 -7 -7 -7 -7 -6 -6 -6 -6 -6 -6 -5 -5 -5 -5 -5 -5 -4 -4 -4 -4 -3 -3 -3 -3 -2 ------- Run | Scr Mat Min Mat Min Mat Fac Low Low Dat Pro Fac Low Low Zio Dee Pro Fac Ext Cet Arc Hub Fac Upp Upp War Pro Res Qua Sec Res Traps Triggered 22 | . . . . . 2 8 . . . . 2 . . . . . . 1 . . 2 3 . . . . 2 1 1 . Indirectly 1 | . . . . . . . . . . . . . . . . . . . . . . 1 . . . . . . . . Trap Hack Attempts . | . . . . . . . . . . . . . . . . . . . . . . . . . . . . . . . Triggered . | . . . . . . . . . . . . . . . . . . . . . . . . . . . . . . . Disarmed . | . . . . . . . . . . . . . . . . . . . . . . . . . . . . . . . Reprogrammed . | . . . . . . . . . . . . . . . . . . . . . . . . . . . . . . . Reused 2 | . . . . . . . . 2 . . . . . . . . . . . . . . . . . . . . . . Traps Extracted . | . . . . . . . . . . . . . . . . . . . . . . . . . . . . . . . Installed 4 | . . . . . . . . 3 . . 1 . . . . . . . . . . . . . . . . . . . Triggered 7 | . . . . . . . . 4 . . . . . . . . . . . . . . . . 3 . . . . . Machines | -11 -10 -10 -9 -9 -8 -7 -7 -7 -7 -6 -6 -6 -6 -6 -6 -5 -5 -5 -5 -5 -5 -4 -4 -4 -4 -3 -3 -3 -3 -2 ---------- Run | Scr Mat Min Mat Min Mat Fac Low Low Dat Pro Fac Low Low Zio Dee Pro Fac Ext Cet Arc Hub Fac Upp Upp War Pro Res Qua Sec Res Machines Disabled 81 | . . . . 3 . 4 . . . . 11 . . 3 3 . 2 . 2 4 36 2 1 1 2 . . . 6 1 Max in Single Turn 19 | . . . . 2 . 2 . . . . 4 . . 1 . . 1 . . . 19 1 1 1 2 . . . 1 1 Garrison Access 7 | . . . . . . 2 . . . . 2 . . . . . 1 . . . 1 . . . . . . 1 . . Network Hub 4 | . . . . . . . . . . . . . . . . . . . . . 4 . . . . . . . . . Machines Sabotaged . | . . . . . . . . . . . . . . . . . . . . . . . . . . . . . . . Garrisons Compromised . | . . . . . . . . . . . . . . . . . . . . . . . . . . . . . . . Overloaded Fab Kills . | . . . . . . . . . . . . . . . . . . . . . . . . . . . . . . . Fab Network Shutdowns 1 | . . . . . . . . . . . 1 . . . . . . . . . . . . . . . . . . . Hacking | -11 -10 -10 -9 -9 -8 -7 -7 -7 -7 -6 -6 -6 -6 -6 -6 -5 -5 -5 -5 -5 -5 -4 -4 -4 -4 -3 -3 -3 -3 -2 --------- Run | Scr Mat Min Mat Min Mat Fac Low Low Dat Pro Fac Low Low Zio Dee Pro Fac Ext Cet Arc Hub Fac Upp Upp War Pro Res Qua Sec Res Machines Accessed 92 | . 2 . 2 . 2 9 1 2 4 1 18 . . . . . 13 10 1 . 8 3 2 . . . 3 6 4 1 Terminals 61 | . 2 . 2 . 2 5 . . . 1 8 . . . . . 9 10 1 . 6 2 1 . . . 3 4 4 1 Fabricators 9 | . . . . . . 2 . . . . 4 . . . . . 2 . . . . 1 . . . . . . . . Repair Stations . | . . . . . . . . . . . . . . . . . . . . . . . . . . . . . . . Recycling Units 3 | . . . . . . . . . . . 3 . . . . . . . . . . . . . . . . . . . Scanalyzers 2 | . . . . . . . . . . . 1 . . . . . . . . . . . . . . . . 1 . . Garrison Access 9 | . . . . . . 2 . . . . 2 . . . . . 2 . . . 2 . . . . . . 1 . . Total Hacks 354 | . 8 . 5 . 4 21 6 2 24 3 62 . . . . . 43 31 2 . 28 16 13 . . . 28 25 27 6 Successful 192 | . 3 . 3 . 2 9 6 2 24 . 36 . . . . . 23 16 1 . 16 9 8 . . . 9 13 9 3 Failed 162 | . 5 . 2 . 2 12 . . . 3 26 . . . . . 20 15 1 . 12 7 5 . . . 19 12 18 3 Catastrophic 22 | . . . . . . 2 . . . . 4 . . . . . 5 . . . . 1 1 . . . 4 2 3 . Database Lockouts . | . . . . . . . . . . . . . . . . . . . . . . . . . . . . . . . Manual 166 | . 2 . 3 . 1 8 . . . 3 21 . . . . . 25 27 1 . 14 8 6 . 1 . 19 8 16 3 Terminals 252 | . 8 . 5 . 4 15 . . . 3 30 . . . . . 30 31 2 . 21 9 12 . . . 28 21 27 6 Fabricators 35 | . . . . . . 3 . . . . 17 . . . . . 8 . . . . 7 . . . . . . . . Repair Stations . | . . . . . . . . . . . . . . . . . . . . . . . . . . . . . . . Recycling Units 9 | . . . . . . . . . . . 9 . . . . . . . . . . . . . . . . . . . Scanalyzers 3 | . . . . . . . . . . . 2 . . . . . . . . . . . . . . . . 1 . . Garrison Access 22 | . . . . . . 3 . . . . 4 . . . . . 5 . . . 7 . . . . . . 3 . . Terminal Hacks 127 | . 3 . 3 . 2 5 6 2 24 . 13 . . . . . 8 11 1 . 10 3 8 . . . 8 10 7 3 Record 23 | . . . . . . . 6 . 11 . . . . . . . . . . . . . 6 . . . . . . . Part Schematic 12 | . . . . . . 1 . . 5 . 2 . . . . . 2 1 . . . . 1 . . . . . . . Robot Schematic 5 | . . . . . . . . . 5 . . . . . . . . . . . . . . . . . . . . . Robot Analysis 5 | . . . . . . . . . . . 1 . . . . . . 4 . . . . . . . . . . . . Prototype ID Bank 21 | . 1 . 1 . 1 . . . 3 . 5 . . . . . 1 . . . 3 1 . . . . 2 2 . 1 Open Door 5 | . . . . . . . . 2 . . . . . . . . . . 1 . . . 1 . . . . . 1 . Level Access Points 2 | . . . . . . 1 . . . . . . . . . . . . . . . . . . . . . 1 . . Branch Access Points 5 | . . . 1 . 1 1 . . . . 1 . . . . . . . . . . 1 . . . . . . . . Emergency Access Points 2 | . . . . . . . . . . . . . . . . . . . . . 2 . . . . . . . . . Terminal Index 1 | . . . . . . . . . . . . . . . . . . . . . . . . . . . . 1 . . Fabricator Index 1 | . . . . . . . . . . . 1 . . . . . . . . . . . . . . . . . . . Scanalyzer Index 1 | . . . . . . . . . . . . . . . . . . . . . 1 . . . . . . . . . Alert Level 5 | . . . . . . 1 . . . . 1 . . . . . . 1 . . . . . . . . . 1 1 . Unreport Threat 16 | . . . . . . 1 . . . . . . . . . . 2 3 . . . . . . . . 5 2 3 . Locate Traps 3 | . 1 . . . . . . . . . . . . . . . . . . . 1 . . . . . . . 1 . Dispatch Records 1 | . . . . . . . . . . . . . . . . . . . . . . . . . . . . 1 . . Security Status 2 | . . . . . . . . . . . . . . . . . . . . . 1 . . . . . . 1 . . Patrol Status 1 | . . . . . . . . . . . . . . . . . . . . . . . . . . . . . . 1 Recall Investigation 1 | . . . . . . . . . . . . . . . . . . 1 . . . . . . . . . . . . Recall Extermination 1 | . . . . . . . . . . . . . . . . . . . . . . . . . . . 1 . . . Recall Reinforcements 1 | . . . . . . . . . . . . . . . . . . . . . . . . . . . . . 1 . Hauler Manifests 7 | . 1 . . . . . . . . . 1 . . . . . 1 1 . . 1 1 . . . . . 1 . . Registered Components 3 | . . . 1 . . . . . . . 1 . . . . . . . . . . . . . . . . . . 1 Registered Prototypes 1 | . . . . . . . . . . . . . . . . . 1 . . . . . . . . . . . . . Zone Layout 2 | . . . . . . . . . . . . . . . . . 1 . . . 1 . . . . . . . . . Fabricator Hacks 14 | . . . . . . 1 . . . . 8 . . . . . 3 . . . . 2 . . . . . . . . Load Schematic 6 | . . . . . . . . . . . 3 . . . . . 2 . . . . 1 . . . . . . . . Build 8 | . . . . . . 1 . . . . 5 . . . . . 1 . . . . 1 . . . . . . . . Repair Station Hacks . | . . . . . . . . . . . . . . . . . . . . . . . . . . . . . . . Recycling Unit Hacks 6 | . . . . . . . . . . . 6 . . . . . . . . . . . . . . . . . . . Retrieve Matter 2 | . . . . . . . . . . . 2 . . . . . . . . . . . . . . . . . . . Retrieve Components 4 | . . . . . . . . . . . 4 . . . . . . . . . . . . . . . . . . . Scanalyzer . | . . . . . . . . . . . . . . . . . . . . . . . . . . . . . . . Garrison Access Hacks 5 | . . . . . . 1 . . . . 2 . . . . . . . . . 1 . . . . . . 1 . . Unlock Access 1 | . . . . . . . . . . . . . . . . . . . . . 1 . . . . . . . . . Seal Access 4 | . . . . . . 1 . . . . 2 . . . . . . . . . . . . . . . . 1 . . Unauthorized Hacks 40 | . . . . . . 2 . . . . 7 . . . . . 12 5 . . 5 4 . . . . 1 2 2 . Terminals 27 | . . . . . . 1 . . . . 6 . . . . . 9 5 . . 1 1 . . . . 1 1 2 . Track 8 | . . . . . . . . . . . 2 . . . . . 3 3 . . . . . . . . . . . . Botnet 16 | . . . . . . 1 . . . . 2 . . . . . 5 2 . . 1 1 . . . . 1 1 2 . Detonate 2 | . . . . . . . . . . . 2 . . . . . . . . . . . . . . . . . . . Operators 1 | . . . . . . . . . . . . . . . . . 1 . . . . . . . . . . . . . Fabricators 4 | . . . . . . . . . . . . . . . . . 1 . . . . 3 . . . . . . . . Report 1 | . . . . . . . . . . . . . . . . . . . . . . 1 . . . . . . . . Prioritize 2 | . . . . . . . . . . . . . . . . . 1 . . . . 1 . . . . . . . . Haulers 1 | . . . . . . . . . . . . . . . . . . . . . . 1 . . . . . . . . Repair Stations . | . . . . . . . . . . . . . . . . . . . . . . . . . . . . . . . Recycling Units . | . . . . . . . . . . . . . . . . . . . . . . . . . . . . . . . Scanalyzers 2 | . . . . . . . . . . . 1 . . . . . . . . . . . . . . . . 1 . . Researchers 1 | . . . . . . . . . . . . . . . . . . . . . . . . . . . . 1 . . Extract 1 | . . . . . . . . . . . 1 . . . . . . . . . . . . . . . . . . . Garrison Access 7 | . . . . . . 1 . . . . . . . . . . 2 . . . 4 . . . . . . . . . Broadcast 1 | . . . . . . . . . . . . . . . . . . . . . 1 . . . . . . . . . Reprogram 3 | . . . . . . . . . . . . . . . . . 1 . . . 2 . . . . . . . . . Intercept 1 | . . . . . . . . . . . . . . . . . . . . . 1 . . . . . . . . . Jam 2 | . . . . . . 1 . . . . . . . . . . 1 . . . . . . . . . . . . . Data Cores Recovered . | . . . . . . . . . . . . . . . . . . . . . . . . . . . . . . . Used . | . . . . . . . . . . . . . . . . . . . . . . . . . . . . . . . Hacking Detections 69 | . 2 . 2 . 2 8 . . . 1 15 . . . . . 11 6 1 . 7 2 1 . . . 3 4 4 . Full Trace Events 15 | . 1 . . . . 1 . . . 1 9 . . . . . 1 1 . . . . 1 . . . . . . . Feedback Events 1 | . . . . . . . . . . . 1 . . . . . . . . . . . . . . . . . . . Corruption 1 | . . . . . . . . . . . 1 . . . . . . . . . . . . . . . . . . . Feedback Blocked . | . . . . . . . . . . . . . . . . . . . . . . . . . . . . . . . Robot Schematics Acquired 5 | . . . . . . . . . 5 . . . . . . . . . . . . . . . . . . . . . Robots Built 6 | . . . . . . 1 . . . . 3 . . . . . 2 . . . . . . . . . . . . . Matter 888 | . . . . . . 219 . . . . 351 . . . . . 318 . . . . . . . . . . . . . Time 378 | . . . . . . 116 . . . . 93 . . . . . 169 . . . . . . . . . . . . . Total Robot Build Rating 36 | . . . . . . 3 . . . . 21 . . . . . 12 . . . . . . . . . . . . . Part Schematics Acquired 21 | . . . . . . 1 . . 5 . 11 . . . . . 2 1 . . . . 1 . . . . . . . Parts Built 6 | . . . . . . . . . . . 4 . . . . . . . . . . 2 . . . . . . . . Matter 636 | . . . . . . . . . . . 380 . . . . . . . . . . 256 . . . . . . . . Time 158 | . . . . . . . . . . . 94 . . . . . . . . . . 64 . . . . . . . . Total Part Build Rating 36 | . . . . . . . . . . . 20 . . . . . . . . . . 16 . . . . . . . . Parts Repaired . | . . . . . . . . . . . . . . . . . . . . . . . . . . . . . . . Time . | . . . . . . . . . . . . . . . . . . . . . . . . . . . . . . . Parts Recycled . | . . . . . . . . . . . . . . . . . . . . . . . . . . . . . . . Recycled Matter . | . . . . . . . . . . . . . . . . . . . . . . . . . . . . . . . Retrieved Matter . | . . . . . . . . . . . . . . . . . . . . . . . . . . . . . . . Retrieved Components 2 | . . . . . . . . . . . 2 . . . . . . . . . . . . . . . . . . . Parts Scanalyzed . | . . . . . . . . . . . . . . . . . . . . . . . . . . . . . . . Part Schematics Acquired . | . . . . . . . . . . . . . . . . . . . . . . . . . . . . . . . Parts Damaged . | . . . . . . . . . . . . . . . . . . . . . . . . . . . . . . . Bothacking | -11 -10 -10 -9 -9 -8 -7 -7 -7 -7 -6 -6 -6 -6 -6 -6 -5 -5 -5 -5 -5 -5 -4 -4 -4 -4 -3 -3 -3 -3 -2 ------------ Run | Scr Mat Min Mat Min Mat Fac Low Low Dat Pro Fac Low Low Zio Dee Pro Fac Ext Cet Arc Hub Fac Upp Upp War Pro Res Qua Sec Res Used RIF Installer . | . . . . . . . . . . . . . . . . . . . . . . . . . . . . . . . Robots Hacked . | . . . . . . . . . . . . . . . . . . . . . . . . . . . . . . . Non-combat . | . . . . . . . . . . . . . . . . . . . . . . . . . . . . . . . Combat . | . . . . . . . . . . . . . . . . . . . . . . . . . . . . . . . Robot Hacks Applied . | . . . . . . . . . . . . . . . . . . . . . . . . . . . . . . . Relay Couplers Released 2 | . . . . . . . . . . . . . . . . . . . . . . . . . . . . . . 2 Programmers 2 | . . . . . . . . . . . . . . . . . . . . . . . . . . . . . . 2 Robots Rewired 21 | . . . . . . . . 2 . . . 2 . . . . . 13 . . . 2 . . . 2 . . . . Allies Hacked 3 | . . . . . . . . . . . . . . . . . . . 2 . . 1 . . . . . . . . Hacks Repelled . | . . . . . . . . . . . . . . . . . . . . . . . . . . . . . . . Allies | -11 -10 -10 -9 -9 -8 -7 -7 -7 -7 -6 -6 -6 -6 -6 -6 -5 -5 -5 -5 -5 -5 -4 -4 -4 -4 -3 -3 -3 -3 -2 -------- Run | Scr Mat Min Mat Min Mat Fac Low Low Dat Pro Fac Low Low Zio Dee Pro Fac Ext Cet Arc Hub Fac Upp Upp War Pro Res Qua Sec Res Total Allies 73 | . . 2 . . . 1 . 3 . 1 3 2 . 4 1 . 2 23 7 . 1 2 . . . 2 . . 6 13 Largest Group 21 | . . 2 . . . 1 . 2 1 2 4 2 1 5 6 . 2 21 21 16 14 2 . . . 2 2 . 6 6 Highest-Rated Group 1005 | . . 49 . . . 34 . 99 98 192 239 98 20 113 231 . 108 772 1005 752 546 105 . . . 111 111 . 87 84 Highest-Rated Ally 156 | . . 31 . . . 34 . 99 98 98 98 98 20 28 118 . 54 156 156 156 94 56 . . . 64 64 . 15 15 Total Orders . | . . . . . . . . . . . . . . . . . . . . . . . . . . . . . . . Ally Attacks 500 | . . 8 . . . 2 . 10 . 12 69 2 . . 59 . 8 77 36 27 53 6 . . . 2 12 . 24 93 Total Damage 18346 | . . 124 . . . 46 . 470 . 549 3782 33 . . 4895 . 157 1951 1396 725 1212 197 . . . 68 440 . 355 1946 Kills 103 | . . 2 . . . . . 5 . 3 23 1 . . 22 . 2 13 10 4 8 1 . . . 1 1 . 1 6 Allies Corrupted 4 | . . . . . . 1 . . . . . . . . . . . . . . 2 1 . . . . . . . . Allies Melted . | . . . . . . . . . . . . . . . . . . . . . . . . . . . . . . . Intel | -11 -10 -10 -9 -9 -8 -7 -7 -7 -7 -6 -6 -6 -6 -6 -6 -5 -5 -5 -5 -5 -5 -4 -4 -4 -4 -3 -3 -3 -3 -2 ------- Run | Scr Mat Min Mat Min Mat Fac Low Low Dat Pro Fac Low Low Zio Dee Pro Fac Ext Cet Arc Hub Fac Upp Upp War Pro Res Qua Sec Res Robot Analysis Total 5 | . . . . . . . . . . . 1 . . . . . . 4 . . . . . . . . . . . . Derelict Logs Recovered 17 | . . . . 1 . . 2 3 . 2 . 2 1 3 . 2 . . . . . . 1 . . . . . . . Drone Launches . | . . . . . . . . . . . . . . . . . . . . . . . . . . . . . . . Drone Recoveries . | . . . . . . . . . . . . . . . . . . . . . . . . . . . . . . . Exploration | -11 -10 -10 -9 -9 -8 -7 -7 -7 -7 -6 -6 -6 -6 -6 -6 -5 -5 -5 -5 -5 -5 -4 -4 -4 -4 -3 -3 -3 -3 -2 ------------- Run | Scr Mat Min Mat Min Mat Fac Low Low Dat Pro Fac Low Low Zio Dee Pro Fac Ext Cet Arc Hub Fac Upp Upp War Pro Res Qua Sec Res Turns Passed 19601 | 38 177 252 225 426 476 1733 726 1832 90 816 1660 1040 831 649 546 656 470 775 211 62 393 568 626 519 753 647 306 252 874 972 Spaces Moved 19502 | 35 135 226 189 360 309 1319 673 1522 80 670 1411 1033 880 832 571 775 770 732 187 42 468 523 837 621 777 879 386 367 850 1043 Core 3 | 2 . . . . . . . . . . . . . . . . . . . . . . . . . . . . 1 . Treads . | . . . . . . . . . . . . . . . . . . . . . . . . . . . . . . . Legs . | . . . . . . . . . . . . . . . . . . . . . . . . . . . . . . . Wheels 6173 | 33 135 226 189 360 309 1319 673 1522 80 670 657 . . . . . . . . . . . . . . . . . . . Hover 13326 | . . . . . . . . . . . 754 1033 880 832 571 775 770 732 187 42 468 523 837 621 777 879 386 367 849 1043 Flight . | . . . . . . . . . . . . . . . . . . . . . . . . . . . . . . . Fastest Speed 48 | 50 90 80 80 90 90 100 100 100 100 100 68 68 68 68 48 48 48 48 48 48 48 58 63 63 55 55 55 48 55 55 Average Speed 71 | 86 90 82 80 90 96 100 100 100 100 100 85 68 68 68 52 48 48 48 48 48 54 60 63 63 60 55 55 54 56 55 Slowest Speed 600 | 90 90 90 90 90 100 100 100 100 100 100 230 68 68 68 68 48 48 48 48 48 58 63 63 63 63 55 55 55 600 55 Overloaded Moves 48 | . . . . . . . . . . . . . . . . . . . . . . . . . . . . 48 . . Propulsion Burnouts . | . . . . . . . . . . . . . . . . . . . . . . . . . . . . . . . Robots Hopped . | . . . . . . . . . . . . . . . . . . . . . . . . . . . . . . . Cave-ins Triggered . | . . . . . . . . . . . . . . . . . . . . . . . . . . . . . . . Exploration Rate (%) 62 | 3 31 45 25 88 46 47 79 97 70 92 38 96 95 84 63 95 24 87 67 68 63 19 97 89 83 96 20 53 41 22 Regions Visited 30 Branch Regions 21 Pre-discovered Areas 4 | . . . . . . . . . 1 . . . 1 . . 1 . . . . . . 1 . . . . . . . Known Exits Taken 11 | . . . 1 1 . 1 . . . 1 1 . . . . 1 1 . . . . 1 1 1 . . . . 1 . Unknown Exits Taken 19 | 1 1 1 . . 1 . 1 1 1 . . 1 1 1 1 . . 1 1 1 1 . . . 1 1 1 1 . . Scrap Searched 36 | . . 2 . 1 . . 8 3 . 1 . 4 3 3 . 2 . . . . . . 5 2 . 2 . . . . Spaces Dug 89 | . . . . 14 . 1 10 5 . 10 10 . 2 . 1 4 10 1 . . 14 4 . . . . . . 1 2 Terrain Destroyed 983 | . . . 25 69 25 27 18 19 . 10 93 1 2 . 1 9 12 2 . . 586 20 . 6 13 . . . 1 44 Melee . | . . . . . . . . . . . . . . . . . . . . . . . . . . . . . . . Projectile 67 | . . . . 1 . 2 . 1 . . 11 1 2 . 1 6 12 2 . . 16 7 . 2 . . . . 1 2 AOE 916 | . . . 25 68 25 25 18 18 . 10 82 . . . . 3 . . . . 570 13 . 4 13 . . . . 42 Terrain Rammed . | . . . . . . . . . . . . . . . . . . . . . . . . . . . . . . . Walls Destroyed . | . . . . . . . . . . . . . . . . . . . . . . . . . . . . . . . Machines Disabled . | . . . . . . . . . . . . . . . . . . . . . . . . . . . . . . . Actions | -11 -10 -10 -9 -9 -8 -7 -7 -7 -7 -6 -6 -6 -6 -6 -6 -5 -5 -5 -5 -5 -5 -4 -4 -4 -4 -3 -3 -3 -3 -2 --------- Run | Scr Mat Min Mat Min Mat Fac Low Low Dat Pro Fac Low Low Zio Dee Pro Fac Ext Cet Arc Hub Fac Upp Upp War Pro Res Qua Sec Res Total 23745 | 39 167 256 234 420 414 1568 708 1748 90 777 1760 1295 1064 907 773 970 842 1107 293 82 546 705 908 701 1040 1012 451 412 1152 1304 Wait 2102 | . 13 5 11 21 39 69 13 130 11 35 192 162 140 59 138 56 40 217 79 38 20 65 7 12 188 73 29 8 164 68 Move 19472 | 34 134 225 188 359 308 1318 672 1521 79 669 1410 1032 879 831 570 774 769 731 186 41 467 522 836 620 776 878 385 366 849 1043 Hop . | . . . . . . . . . . . . . . . . . . . . . . . . . . . . . . . Pick Up 73 | . . . . 2 . 7 3 7 . 5 6 3 . . 2 5 1 . . 1 . 3 3 2 7 2 3 3 2 6 Fast Attach 141 | 5 1 1 6 1 7 16 . . . 1 22 6 . 4 8 6 3 6 3 . 8 5 . 4 5 . 2 . 15 6 Attach 26 | . . . 1 . . 1 1 5 . . 1 . . . . . . . . . . . . . 2 . 1 . 10 4 Detach 13 | . . . 1 . . . . . . . . . . . . . . . . . . . . . 1 . . . 9 2 Swap 26 | . . 1 3 1 1 3 . . . 1 2 . . 1 . 3 2 . . . . 3 1 2 . . 1 . . 1 Drop 192 | . 1 1 5 2 6 19 2 6 . 6 25 8 . 3 10 12 5 6 3 1 4 9 4 5 15 3 5 4 12 10 Fire 869 | . 13 17 14 23 33 69 10 35 . 18 55 31 25 9 26 45 20 24 9 1 47 44 18 33 22 24 21 7 74 102 Melee . | . . . . . . . . . . . . . . . . . . . . . . . . . . . . . . . Ram . | . . . . . . . . . . . . . . . . . . . . . . . . . . . . . . . Kick . | . . . . . . . . . . . . . . . . . . . . . . . . . . . . . . . Crush . | . . . . . . . . . . . . . . . . . . . . . . . . . . . . . . . Escape Stasis 17 | . . . . . . 16 . . . . . . . . . . . 1 . . . . . . . . . . . . Rewire 151 | . . . . . . . . 15 . . . 10 . . . . . 108 . . . 5 . . . 13 . . . . Trap 4 | . . . . . . . . 3 . . 1 . . . . . . . . . . . . . . . . . . . Miscellaneous 659 | . 5 6 5 11 20 50 7 26 . 42 46 43 20 . 19 69 2 14 13 . . 49 39 23 24 19 4 24 17 62 Route ------- -11/Scrapyard -10/Materials -10/Mines -9/Materials (discovered 2 exits: *Min x2) -9/Mines (discovered 2 exits: *Mat x2) -8/Materials -7/Factory (discovered 8 exits: *Fac x4 / *Sto x2 / *Low x2) -7/Lower Caves -7/Lower Caves (discovered 2 exits: *Fac / *Dat) -7/Data Miner -6/Proximity Caves -6/Factory (discovered 4 exits: *Fac x2 / *Low x2) -6/Lower Caves -6/Lower Caves (discovered 2 exits: *Fac / [*Zio]) -6/Zion (discovered 2 exits: [*Dee] / [*Pro]) -6/Deep Caves -5/Proximity Caves -5/Factory (discovered 6 exits: *Fac x2 / Upp x2 / *Ext x2) -5/Extension (discovered 3 exits: *Fac x2 / *Cet) -5/Cetus (discovered 2 exits: *Fac / [*Arc]) -5/Archives (discovered 2 exits: Fac / *Hub) -5/Hub_04(d) (discovered 3 exits: *Fac x2 / Gar) -4/Factory (discovered 4 exits: *Res / *Upp x2 / Arm) -4/Upper Caves -4/Upper Caves (discovered 2 exits: Res / *War) -4/Warlord -3/Proximity Caves -3/Research (discovered 2 exits: Res / *Qua) -3/Quarantine (discovered 2 exits: *Res / *Sec) -3/Section 7 -2/Research History --------- Turn | Location | Event 1 | -11/Scrapyard | Upgraded with Propulsion slot (x1) 1 | -11/Scrapyard | Upgraded with Weapon slot (x1) 23 | -11/Scrapyard | Discovered new exit (range 16) 39 | -11/Scrapyard | Entered Materials 192 | -10/Materials | Discovered new exit (range 8) 216 | -10/Materials | Entered Mines 277 | -10/Mines | Assembled infested the area 312 | -10/Mines | Build established: Mutant 432 | -10/Mines | Discovered new exit (range 15) 468 | -10/Mines | Entered Materials 470 | -9/Materials | Reached level 2 500 | -9/Materials | Identified exit to Mines 511 | -9/Materials | Upgraded with Weapon slot (x1) 599 | -9/Materials | Reached level 3 637 | -9/Materials | Upgraded with Utility slot (x1) 637 | -9/Materials | Upgraded with Weapon slot (x1) 693 | -9/Materials | Entered Mines 701 | -9/Mines | Received a Rocket Launcher from a helpful Derelict 766 | -9/Mines | Reached level 4 772 | -9/Mines | Discovered new exit (range 13) 900 | -9/Mines | Found a hidden stash of uninstalled traps 912 | -9/Mines | Identified exit to Materials 951 | -9/Mines | Build established: Tank 1067 | -9/Mines | Reached level 5 1119 | -9/Mines | Entered Materials 1121 | -8/Materials | Reached level 6 1309 | -8/Materials | Reached level 7 1414 | -8/Materials | Garrison activated, responded to threat 1434 | -8/Materials | Core integrity fell below 50% 1565 | -8/Materials | Upgraded with Weapon slot (x1) 1576 | -8/Materials | Discovered new exit (range 16) 1595 | -8/Materials | Entered Factory 1597 | -7/Factory | Reached level 8 1751 | -7/Factory | Upgraded with Utility slot (x1) 1834 | -7/Factory | Discovered new exit (range 13) 1883 | -7/Factory | Reached level 9 1973 | -7/Factory | Destroyed 8 combat bots 2207 | -7/Factory | Reached level 10 2278 | -7/Factory | Discovered new exit (range 11) 2285 | -7/Factory | Identified exit to Factory 2395 | -7/Factory | First assault squad dispatched 2420 | -7/Factory | Build established: Gunner 2422 | -7/Factory | Reached level 11 2542 | -7/Factory | Upgraded with Power slot (x1) 2564 | -7/Factory | Fabricated D-53 Grenadier? 2656 | -7/Factory | Upgraded with Utility slot (x1) 2706 | -7/Factory | Identified exit to Storage 2706 | -7/Factory | Identified exit to Lower Caves 2757 | -7/Factory | Upgraded with Utility slot (x1) 2957 | -7/Factory | Reached level 12 3328 | -7/Factory | Entered Lower Caves 3388 | -7/Lower Caves | Learned location of 1 exit from Research 3388 | -7/Lower Caves | Learned Extension trap positions 3388 | -7/Lower Caves | Learned Extension stockpile data 3426 | -7/Lower Caves | Learned 12 Factory zone layouts 3658 | -7/Lower Caves | Reached level 13 3682 | -7/Lower Caves | Upgraded with Utility slot (x1) 3824 | -7/Lower Caves | Encountered a Warlord checkpoint 3852 | -7/Lower Caves | Learned Factory emergency access door positions 3869 | -7/Lower Caves | Discovered new exit (range 13) 4054 | -7/Lower Caves | Entered another Lower Caves area 4061 | -7/Lower Caves | Learned 12 Factory zone layouts 4108 | -7/Lower Caves | Discovered exit to Factory (range 15) 4316 | -7/Lower Caves | Reached level 14 4348 | -7/Lower Caves | Upgraded with Utility slot (x1) 4420 | -7/Lower Caves | Encountered a Warlord checkpoint 4548 | -7/Lower Caves | Attracted the attention of an 0b10 outpost 4578 | -7/Lower Caves | Destroyed 8 combat bots 4806 | -7/Lower Caves | Discovered new exit (range 8) 4870 | -7/Lower Caves | Found Prototype Device 4958 | -7/Lower Caves | Identified Heart of Steel 5227 | -7/Lower Caves | Reached level 15 5617 | -7/Lower Caves | Heart of Steel transformed into Warbot 5886 | -7/Lower Caves | Entered Data Miner 5886 | -7/Data Miner | Accompanied by 1 ally (Warbot) 5886 | -7/Data Miner | Discovered new exit (range 6) 5905 | -7/Data Miner | Met Data Miner 5925 | -7/Data Miner | Acquired the access code to Warlord's prototype stash 5925 | -7/Data Miner | Learned location of Section 7 (-3) 5942 | -7/Data Miner | Received God Mode back door access code from Data Miner 5976 | -7/Data Miner | Entered Proximity Caves 5976 | -6/Proximity Caves | Accompanied by 1 ally (Warbot) 5978 | -6/Proximity Caves | Reached level 16 6002 | -6/Proximity Caves | Escorted by Enhanced Grunt 6098 | -6/Proximity Caves | Attracted the attention of an 0b10 checkpoint 6152 | -6/Proximity Caves | Spotted B-75 Beast 6160 | -6/Proximity Caves | Allies destroyed B-75 Beast 6297 | -6/Proximity Caves | Learned 4 Factory zone layouts 6333 | -6/Proximity Caves | System corruption reached 10% 6389 | -6/Proximity Caves | Reached level 17 6447 | -6/Proximity Caves | Learned Factory emergency access door positions 6475 | -6/Proximity Caves | Build established: Scavenger-Gunner 6667 | -6/Proximity Caves | Discovered exit to Factory (range 10) 6792 | -6/Proximity Caves | Entered Factory 6792 | -6/Factory | Accompanied by 2 allies (Warbot) 6793 | -6/Factory | Identified exit to Lower Caves 6794 | -6/Factory | Identified exit to Factory 6794 | -6/Factory | Reached level 18 6872 | -6/Factory | Discovered exit to Factory (range 5) 7066 | -6/Factory | Upgraded with Utility slot (x1) 7068 | -6/Factory | Found Prototype Device 7068 | -6/Factory | Identified Exp. Thermal Shield 7221 | -6/Factory | Upgraded with Utility slot (x1) 7316 | -6/Factory | Reached level 19 7325 | -6/Factory | Upgraded with Propulsion slot (x1) 7435 | -6/Factory | Spotted B-75 Beast 7457 | -6/Factory | Destroyed B-75 Beast 7464 | -6/Factory | Fabricated Cmb. Airjet? 7520 | -6/Factory | Incoming investigation squad redirected 7670 | -6/Factory | Fabricated Cmb. Airjet? 7693 | -6/Factory | Upgraded with Propulsion slot (x1) 7861 | -6/Factory | Incoming investigation squad redirected 7928 | -6/Factory | Fabricated G-67 Veteran? 7958 | -6/Factory | Incoming investigation squad redirected 7996 | -6/Factory | Local fabrication network quarantined 8104 | -6/Factory | Reached level 20 8192 | -6/Factory | First assault squad dispatched 8207 | -6/Factory | Incoming assault squad redirected 8255 | -6/Factory | Incoming investigation squad redirected 8452 | -6/Factory | Entered Lower Caves 8452 | -6/Lower Caves | Accompanied by 1 ally (Warbot) 8679 | -6/Lower Caves | Spotted B-75 Beast 8687 | -6/Lower Caves | Destroyed B-75 Beast 8725 | -6/Lower Caves | Discovered new exit (range 10) 8816 | -6/Lower Caves | Destroyed 13 combat bots 8817 | -6/Lower Caves | Learned Factory security intel 8821 | -6/Lower Caves | Attracted the attention of an 0b10 outpost 8959 | -6/Lower Caves | Learned 8 Factory zone layouts 9054 | -6/Lower Caves | Ambushed by wild Derelicts 9265 | -6/Lower Caves | Encountered a Warlord checkpoint 9492 | -6/Lower Caves | Entered another Lower Caves area 9492 | -6/Lower Caves | Accompanied by 1 ally 9506 | -6/Lower Caves | Learned location of Zion (-6) 9547 | -6/Lower Caves | Discovered exit to Factory (range 13) 9801 | -6/Lower Caves | Reached level 21 9890 | -6/Lower Caves | Discovered new exit (range 8) 10323 | -6/Lower Caves | Entered Zion 10323 | -6/Zion | Accompanied by 1 ally 10358 | -6/Zion | Discovered new exit (range 15) 10369 | -6/Zion | System corruption cleaned by Quarantine Array 10394 | -6/Zion | Found Exp. Targeting Computer 10397 | -6/Zion | Found Prototype Processor 10397 | -6/Zion | Identified Exp. Melee Analysis Suite 10400 | -6/Zion | Found Prototype Processor 10400 | -6/Zion | Identified Exp. Armor Integrity Analyzer 10402 | -6/Zion | Found Prototype Processor 10402 | -6/Zion | Identified Exp. Core Analyzer 10405 | -6/Zion | Upgraded with Utility slot (x1) 10545 | -6/Zion | Given A8's code to call for help 10576 | -6/Zion | Given the Hacking Drone Bay 10607 | -6/Zion | Learned Factory security intel 10827 | -6/Zion | Gained Derelict followers 10913 | -6/Zion | Discovered new exit (range 4) 10913 | -6/Zion | Saw the warning signs outside the Deep Caves entrance 10972 | -6/Zion | Entered Deep Caves 10972 | -6/Deep Caves | Accompanied by 5 allies 10973 | -6/Deep Caves | Met 5H-AD0 11034 | -6/Deep Caves | Z-Facility disabled 11061 | -6/Deep Caves | Attacked by Z-Imprinter 11069 | -6/Deep Caves | Allies destroyed Z-Imprinter 11095 | -6/Deep Caves | Found Prototype Device 11095 | -6/Deep Caves | Identified Zio. Metafield Generator 11316 | -6/Deep Caves | Spotted as-59334 11402 | -6/Deep Caves | Allies destroyed as-59334 11455 | -6/Deep Caves | Spotted as-83261 11456 | -6/Deep Caves | Found Prototype Storage 11457 | -6/Deep Caves | Triggered Deep Caves wall 11457 | -6/Deep Caves | Spotted AS-01405 11467 | -6/Deep Caves | Exposed GOLEM chamber 11495 | -6/Deep Caves | Core integrity fell below 50% 11511 | -6/Deep Caves | Discovered new exit (range 15) 11512 | -6/Deep Caves | Destroyed 16 combat bots 11518 | -6/Deep Caves | Entered Proximity Caves 11568 | -5/Proximity Caves | Identified Superbattery 11612 | -5/Proximity Caves | Spotted B-75 Beast 11614 | -5/Proximity Caves | Destroyed B-75 Beast 11628 | -5/Proximity Caves | Learned location of Warlord (-4) 11771 | -5/Proximity Caves | Reached level 22 11861 | -5/Proximity Caves | Learned Factory machine intel 11885 | -5/Proximity Caves | Discovered exit to Factory (range 17) 12067 | -5/Proximity Caves | Attracted the attention of an 0b10 checkpoint 12174 | -5/Proximity Caves | Entered Factory 12175 | -5/Factory | Identified exit to Upper Caves 12176 | -5/Factory | Identified exit to Extension 12179 | -5/Factory | Loaded intel: 264 machine locations 12246 | -5/Factory | Reached level 23 12276 | -5/Factory | Discovered new exit (range 17) 12407 | -5/Factory | Discovered exit to Extension (range 14) 12445 | -5/Factory | Discovered new exit (range 19) 12525 | -5/Factory | Fabricated P-70 Sage? 12604 | -5/Factory | Incoming investigation squad redirected 12644 | -5/Factory | Entered Extension 12644 | -5/Extension | Accompanied by 2 allies 12645 | -5/Extension | Loaded intel: 24 trap records 12658 | -5/Extension | Rescued a captive Derelict 12658 | -5/Extension | Rescued a captive Derelict 12728 | -5/Extension | Rescued a captive Derelict 12919 | -5/Extension | Disrupted transfer network 13025 | -5/Extension | Spotted B-75 Beast 13028 | -5/Extension | Destroyed B-75 Beast 13034 | -5/Extension | Spotted B-75 Beast 13048 | -5/Extension | Destroyed B-75 Beast 13085 | -5/Extension | Discovered new exit (range 6) 13121 | -5/Extension | Rescued a captive Derelict 13132 | -5/Extension | Rescued a captive Derelict 13133 | -5/Extension | Rescued a captive Derelict 13139 | -5/Extension | Rescued a captive Derelict 13140 | -5/Extension | Rescued a captive Derelict 13267 | -5/Extension | Reached level 24 13317 | -5/Extension | Rescued a captive Derelict 13336 | -5/Extension | Rescued A7 13348 | -5/Extension | Discovered new exit (range 19) 13352 | -5/Extension | Discovered new exit (range 6) 13419 | -5/Extension | Entered Cetus 13419 | -5/Cetus | Accompanied by 18 allies (A7) 13424 | -5/Cetus | Acquired a Cetus Manufacturing Module code from A7 13428 | -5/Cetus | Spotted Cetus Guard 13428 | -5/Cetus | Spotted Cetus Guard 13428 | -5/Cetus | Spotted Cetus Guard 13430 | -5/Cetus | Spotted Cetus Guard 13434 | -5/Cetus | Sage 6a assimilated hostile Cetus Guard 13437 | -5/Cetus | Allies destroyed Cetus Guard 13438 | -5/Cetus | Allies destroyed Cetus Guard 13438 | -5/Cetus | Allies destroyed Cetus Guard 13440 | -5/Cetus | Allies destroyed Cetus Guard 13474 | -5/Cetus | Started Cetus Manufacturing Module 13478 | -5/Cetus | Escorted A7 to Cetus Mainframe 13491 | -5/Cetus | Discovered new exit (range 16) 13499 | -5/Cetus | Manufactured an Enhanced Grunt 13524 | -5/Cetus | Manufactured an Enhanced Grunt 13549 | -5/Cetus | Manufactured an Enhanced Grunt 13552 | -5/Cetus | Spotted Cetus Guard 13552 | -5/Cetus | Spotted Cetus Guard 13553 | -5/Cetus | Spotted Cetus Guard 13556 | -5/Cetus | Spotted Cetus Guard 13558 | -5/Cetus | Sage 6a assimilated hostile Cetus Guard 13564 | -5/Cetus | Allies destroyed Cetus Guard 13564 | -5/Cetus | Allies destroyed Cetus Guard 13566 | -5/Cetus | Allies destroyed Cetus Guard 13570 | -5/Cetus | Discovered new exit (range 17) 13573 | -5/Cetus | Met Revision 17 13574 | -5/Cetus | Manufactured an Enhanced Grunt 13599 | -5/Cetus | Manufactured an Enhanced Grunt 13630 | -5/Cetus | Entered Archives 13630 | -5/Archives | Accompanied by 16 allies (A7) 13635 | -5/Archives | Received a hacking code to weaken MAIN.C 13649 | -5/Archives | Discovered new exit (range 19) 13653 | -5/Archives | Discovered new exit (range 17) 13692 | -5/Archives | Entered Hub_04(d) 13692 | -5/Hub_04(d) | Accompanied by 13 allies 13720 | -5/Hub_04(d) | Discovered new exit (range 14) 13751 | -5/Hub_04(d) | Identified exit to Garrison 13766 | -5/Hub_04(d) | Garrison activated, responded to threat 13824 | -5/Hub_04(d) | Spotted B-75 Beast 13833 | -5/Hub_04(d) | Destroyed B-75 Beast 13895 | -5/Hub_04(d) | Reached level 25 13933 | -5/Hub_04(d) | Discovered new exit (range 13) 13974 | -5/Hub_04(d) | Network Hub disabled 13992 | -5/Hub_04(d) | First assault squad dispatched 13994 | -5/Hub_04(d) | Network Hub disabled 14031 | -5/Hub_04(d) | Network Hub disabled 14040 | -5/Hub_04(d) | Network Hub disabled 14046 | -5/Hub_04(d) | Spotted Lightning 14049 | -5/Hub_04(d) | Incoming assault squad redirected 14052 | -5/Hub_04(d) | Spotted Lightning 14054 | -5/Hub_04(d) | Spotted Lightning 14058 | -5/Hub_04(d) | Spotted Lightning 14058 | -5/Hub_04(d) | Spotted Lightning 14059 | -5/Hub_04(d) | Spotted Lightning 14060 | -5/Hub_04(d) | Core integrity fell below 50% 14081 | -5/Hub_04(d) | Spotted Lightning 14083 | -5/Hub_04(d) | Spotted Lightning 14083 | -5/Hub_04(d) | Spotted Lightning 14085 | -5/Hub_04(d) | Entered Factory 14086 | -4/Factory | Identified exit to Upper Caves 14086 | -4/Factory | Core integrity fell below 50% 14117 | -4/Factory | Spotted B-86 Titan 14145 | -4/Factory | Destroyed B-86 Titan 14263 | -4/Factory | Identified exit to Armory 14335 | -4/Factory | First assault squad dispatched 14348 | -4/Factory | Reached level 26 14389 | -4/Factory | Fabricated Cmb. Antigrav System (x2) 14481 | -4/Factory | High security lockdown imminent 14484 | -4/Factory | Garrison activated, responded to threat 14523 | -4/Factory | Destroyed 11 combat bots 14561 | -4/Factory | High security lockdown engaged 14567 | -4/Factory | Discovered new exit (range 13) 14617 | -4/Factory | Destroyed 9 combat bots 14648 | -4/Factory | Garrison activated, responded to threat 14653 | -4/Factory | Entered Upper Caves 15093 | -4/Upper Caves | Learned location of Armory (-4) 15115 | -4/Upper Caves | Attracted the attention of an 0b10 base 15165 | -4/Upper Caves | Destroyed 7 combat bots 15184 | -4/Upper Caves | Learned Extension security intel 15184 | -4/Upper Caves | Learned Factory emergency access door positions 15184 | -4/Upper Caves | Learned Research trap positions 15184 | -4/Upper Caves | Identified exit to Upper Caves 15184 | -4/Upper Caves | Learned location of 1 exit from Upper Caves 15279 | -4/Upper Caves | Entered another Upper Caves area 15280 | -4/Upper Caves | Identified exit to Warlord 15281 | -4/Upper Caves | Attracted the attention of an 0b10 checkpoint 15281 | -4/Upper Caves | Reached level 27 15284 | -4/Upper Caves | Discovered new exit (range 20) 15491 | -4/Upper Caves | Spotted B-86 Titan 15511 | -4/Upper Caves | Destroyed B-86 Titan 15682 | -4/Upper Caves | Attracted the attention of an 0b10 outpost 15715 | -4/Upper Caves | Destroyed 7 combat bots 15798 | -4/Upper Caves | Entered Warlord 15819 | -4/Warlord | System corruption cleaned by Quarantine Array 16008 | -4/Warlord | Build established: Scavenger-Mutant 16012 | -4/Warlord | Found Prototype Energy Gun 16012 | -4/Warlord | Identified Plasma Storm 16116 | -4/Warlord | Met Warlord 16121 | -4/Warlord | Warlord's base attacked by MAIN.C 16122 | -4/Warlord | Opened Warlord's prototype stash 16124 | -4/Warlord | Found Prototype Reactor 16124 | -4/Warlord | Identified Vortex Chain Reactor 16166 | -4/Warlord | Upgraded with Utility slot (x1) 16313 | -4/Warlord | Build established: Hacker-Gunner 16321 | -4/Warlord | Warlord forces counterattacked 16397 | -4/Warlord | Discovered new exit (range 17) 16422 | -4/Warlord | Spotted Striker 16521 | -4/Warlord | Spotted Executioner 16521 | -4/Warlord | Spotted Striker 16521 | -4/Warlord | Spotted Striker 16524 | -4/Warlord | Destroyed 92-8L6(g) 16525 | -4/Warlord | Attacked by Warlord forces 16526 | -4/Warlord | Spotted C3-FRN(g) 16542 | -4/Warlord | Destroyed C3-FRN(g) 16551 | -4/Warlord | Entered Proximity Caves 16553 | -3/Proximity Caves | Reached level 28 16583 | -3/Proximity Caves | Destroyed 17 combat bots 16938 | -3/Proximity Caves | Attracted the attention of an 0b10 outpost 17035 | -3/Proximity Caves | Spotted B-86 Titan 17044 | -3/Proximity Caves | Destroyed B-86 Titan 17082 | -3/Proximity Caves | Discovered new exit (range 5) 17198 | -3/Proximity Caves | Entered Research 17198 | -3/Research | Accompanied by 2 allies 17199 | -3/Research | Identified exit to Research 17200 | -3/Research | Loaded intel: 72 trap records 17200 | -3/Research | Reached level 29 17484 | -3/Research | First assault squad dispatched 17495 | -3/Research | Discovered new exit (range 9) 17502 | -3/Research | Incoming assault squad redirected 17503 | -3/Research | Incoming investigation squad redirected 17504 | -3/Research | Entered Quarantine 17521 | -3/Quarantine | Found Adv. Powered Armor 17712 | -3/Quarantine | Spotted Fortress 17750 | -3/Quarantine | Discovered new exit (range 6) 17756 | -3/Quarantine | Entered Section 7 17758 | -3/Section 7 | Reached level 30 17772 | -3/Section 7 | Upgraded with Utility slot (x1) 17914 | -3/Section 7 | Discovered exit to Research (range 8) 18049 | -3/Section 7 | Destroyed 11 combat bots 18086 | -3/Section 7 | Found Alien Artifact 18086 | -3/Section 7 | Identified Integrated Reactor 18086 | -3/Section 7 | Installed Integrated Reactor, increased core energy generation (+10) 18125 | -3/Section 7 | Scanned by Researcher 18141 | -3/Section 7 | Spotted Alpha 7 18142 | -3/Section 7 | Spotted Alpha 7 18169 | -3/Section 7 | Destroyed Alpha 7 18175 | -3/Section 7 | Destroyed Alpha 7 18203 | -3/Section 7 | Spotted B-99 Colossus 18227 | -3/Section 7 | Found Alien Artifact 18227 | -3/Section 7 | Identified Integrity Redistributor 18227 | -3/Section 7 | Used Integrity Redistributor, redistributed integrity from core (-12) 18260 | -3/Section 7 | Found Alien Artifact 18260 | -3/Section 7 | Identified LRC Matter Compressor 18260 | -3/Section 7 | Installed LRC Matter Compressor, increased matter storage capacity (+125) 18269 | -3/Section 7 | Intercept squad dispatched 18283 | -3/Section 7 | Spotted Tracker 18288 | -3/Section 7 | Found Alien Artifact 18288 | -3/Section 7 | Identified Core Reset Matrix 18288 | -3/Section 7 | Used Core Reset Matrix 18292 | -3/Section 7 | Sensed 17 artifacts in vicinity 18295 | -3/Section 7 | Destroyed Tracker 18455 | -3/Section 7 | Core integrity fell below 50% 18469 | -3/Section 7 | Emitted hypermatrix ping 18470 | -3/Section 7 | Destroyed B-99 Colossus 18474 | -3/Section 7 | Assembled emerged from beneath the floor 18572 | -3/Section 7 | Spotted S7 Guard 18587 | -3/Section 7 | Found Core Membrane 18587 | -3/Section 7 | Installed Core Membrane, gained immunity to corruption 18605 | -3/Section 7 | Discovered exit to Research (range 13) 18630 | -3/Section 7 | Entered Research 18630 | -2/Research | Warlord forces began assault on 0b10 18631 | -2/Research | Emitted hypermatrix ping 18631 | -2/Research | Core integrity fell below 50% 18632 | -2/Research | Reached level 31 18636 | -2/Research | Assembled emerged from beneath the floor 18733 | -2/Research | Spotted 40-C61(L) 18733 | -2/Research | Spotted AY-P16(H) 18740 | -2/Research | Research machine network offline 18742 | -2/Research | Core integrity fell below 20% 18742 | -2/Research | Destroyed 40-C61(L) 18804 | -2/Research | Destroyed 14 combat bots 18904 | -2/Research | Spotted 13-60E(K) 18905 | -2/Research | Attacked by Warlord 18909 | -2/Research | Spotted KR-3GK(K) 18927 | -2/Research | Spotted UP-HZX(B) 18927 | -2/Research | Spotted VF-2FG(B) 18928 | -2/Research | Spotted Executioner 18931 | -2/Research | Assembled emerged from beneath the floor 18936 | -2/Research | Borebot progress halted 18939 | -2/Research | Build established: Hacker-Tank 18950 | -2/Research | Destroyed 13-60E(K) 18957 | -2/Research | Reached level 32 18957 | -2/Research | Spotted B-90 Cyclops 18970 | -2/Research | Destroyed B-90 Cyclops 18973 | -2/Research | Destroyed AY-P16(H) 18984 | -2/Research | Spotted QC-C9I(g) 18994 | -2/Research | Destroyed 8 combat bots 19024 | -2/Research | Destroyed QC-C9I(g) 19079 | -2/Research | Spotted Executioner 19079 | -2/Research | Spotted Executioner 19080 | -2/Research | Warlord destroyed during the assault 19080 | -2/Research | Destroyed Executioner 19092 | -2/Research | Destroyed Executioner 19123 | -2/Research | Spotted RF-QVW(K) 19130 | -2/Research | Spotted QV-VDD(K) 19159 | -2/Research | Spotted Executioner 19164 | -2/Research | Spotted Executioner 19171 | -2/Research | Spotted Executioner 19175 | -2/Research | Spotted Executioner 19175 | -2/Research | Spotted Executioner 19177 | -2/Research | Destroyed Executioner 19180 | -2/Research | Spotted Executioner 19205 | -2/Research | Destroyed 10 combat bots 19254 | -2/Research | Borebot progress halted 19306 | -2/Research | Spotted 5A-UY7(D) 19365 | -2/Research | Destroyed Executioner 19366 | -2/Research | Destroyed Executioner 19375 | -2/Research | Destroyed Executioner 19467 | -2/Research | Spotted N3-YHU(D) 19538 | -2/Research | Spotted B1-SNK(L) 19580 | -2/Research | Spotted Executioner 19581 | -2/Research | Spotted Striker 19585 | -2/Research | Destroyed Executioner 19588 | -2/Research | Spotted Striker 19590 | -2/Research | Destroyed Striker 19593 | -2/Research | Destroyed Striker 19596 | -2/Research | Destroyed Executioner 19602 | -2/Research | Destroyed by B1-SNK(L) with Centrium Claws Last Messages --------------- 19593_ Unknown Hover Unit melted. 19593_ Unknown Special Weapon melted. 19593_ Unknown Storage melted. 19593_ Unknown Device melted. 19593_ Unknown Processor melted. 19593_ P-80 Master destroyed. 19593_ Slug penetrates Wall. 19593_ Slug penetrates B1-SNK(L). 19594_ Slug penetrates Wall. 19594_ Penetrated by Slug. 19596_ Destroyed Unknown Device. 19597_ Slug penetrates Wall. 19597_ 8M-H9H(l) destroyed. 19597_ Slug penetrates Wall. 19597_ Penetrated by Slug. 19599_ H-88 Terminator destroyed. 19600_ H-88 Terminator heat short circuits Unknown Device. 19600_ Slug penetrates Wall. 19600_ Penetrated by Slug. 19601_ Reaction Control System destroyed. Map ----- +----------------------------------------------------+ | # #" *! # [[ ######## ???? | | # # * = [ ########????? | | # #" ] # ##?##### ???? | | # # # # ########?#####? ??? | | # # # # ###########??#? ??? | | # ########"#### # # ##########??#??? | | # ################## # # ?### ??? | | ## ## ###### # %# ## ####???? | | / # ###### ## ### # # ##???? | | = # # # ##???? | | % === # # ! = T" #? ?? | | =%= # """ # ! *%" #?#???# | | #"=* # """ #= [ #? ??#??? | | ##" # =""" %[ !%] !%! ## ??#??# | | " # [ = #] h%=* !!! #???#???? | | / / * [[ # = C #??? ? | | # # # # #??#?? | | # "#"###### # ???? | | " ####%]### ### ##???? | | # = % ! # #????? | | ### !! #?#??? | | ###""/" %! !% # ## # # #??#?? | | "*=*** *= ### ### ##????? | | #*[!*! ## ######## ## ?????? | | = #%%[== = # # ############????? | | ![%*=% = %@ ###### ? ?? ???? | | "[!% [ L ## ### ? ? ? ????? | | "! = ;# #####; ##?### ?????? | | /###" %! ## ##;;; ;;###### ? ?????? | | #### = # ##; ##### ????? | | %# # ### # ### ? ????? | | !# ####% ### ##### ? ? ? #???? | | ?# =%/%! ! ##### ?? ?????? | | != = %[####[[! ### # ### ? ? ? ??????? | | [%* =**=############# # ### ? ? ? ? ????? | | ####*% #############;;;#;### ###? ? ? ?????? | | ## = ##?##### ##### ### ?? ????? | | # = ####### ####### # ###? # ?###?????? | | ? %% ? #####?######## ? ? ? ??????? | | ?# ### ###### ? #? ????????? | | ? # # ?# ###### ##? """ ? ?????????? | | ??"#########/?############## """ /? ??????????? | | ##?### ? # """? ? ??????????? | | ?####?# ? # ? ? "?? ?# ???????????? | | ? ?#???# # # ?""??#? ??????????? | | +?#?+###### ? ? ?? ? ??# "????#? ??????????? | | ? ##? ? ? ? ??#? "?? ??????????????? | | ?? ? #??# ?#? ? ??#???? ?? ???????????? | | ? ????##?# ???? ?#????? # ????? ?????????????? | | ????? ???? ?? ? ? ? ??#??????????????????? | +----------------------------------------------------+ Best States ------------- Heat Dissipation 153 Coolant Potential 80 Energy Generation 70 Energy Capacity 2700 Matter Stores 475 Matter Capacity 475 Sight Range 17 Robot Scan Range 2 Terrain Scan Range 20 Terrain Scan Density 310 Heat Shielding 100 Armor Coverage 400 Resistance: KI 20 Resistance: TH 30 Point Defense Rating 160 Weapon Cycling 20 Evasion (%) 67 Targeting Accuracy 12 Core Analysis 15 Energy Filtering 30 Particle Charging 25 Salvage Targeting 3 Offensive Hacking 15 Defensive Hacking 15 Item Schematics ----------------- None Robot Schematics ------------------ None Fabricated ------------ D-53 Grenadier | x1 | -7/Factory | Preloaded Cmb. Airjet | x2 | -6/Factory Cmb. Airjet | x2 | -6/Factory G-67 Veteran | x3 | -6/Factory P-70 Sage | x2 | -5/Factory Cmb. Antigrav System | x2 | -4/Factory Alien Tech Used ----------------- Integrated Reactor Integrity Redistributor LRC Matter Compressor Core Reset Matrix Core Membrane Achievements -------------- None Challenges ------------ None RPGLIKE | -11 -10 -10 -9 -9 -8 -7 -7 -7 -7 -6 -6 -6 -6 -6 -6 -5 -5 -5 -5 -5 -5 -4 -4 -4 -4 -3 -3 -3 -3 -2 --------- Run | Scr Mat Min Mat Min Mat Fac Low Low Dat Pro Fac Low Low Zio Dee Pro Fac Ext Cet Arc Hub Fac Upp Upp War Pro Res Qua Sec Res Levels Raised 31 | . . . 2 2 2 5 1 2 . 2 3 . 1 . . 1 1 1 . . 1 1 . 1 . 1 1 . 1 2 XP Earned 50643 | 3000 285 679 2660 2387 4142 7226 1325 2644 316 3049 4124 779 558 105 349 1601 1103 1296 478 266 1161 1966 395 575 726 1381 1043 676 1596 2752 XP Spent 47920 | 2985 . . 2400 500 3525 8780 1800 2000 . . 7700 . . 3275 . 1505 1400 480 . . . 1250 . . 4260 . 640 . 3500 1920 Upgrades 87 | 12 . . 3 1 8 18 3 1 . . 6 . . 4 . 4 2 3 . . . 1 . . 6 . 2 . 1 12 Power Slot 1 | . . . . . . 1 . . . . . . . . . . . . . . . . . . . . . . . . Propulsion Slot 3 | 1 . . . . . . . . . . 2 . . . . . . . . . . . . . . . . . . . Utility Slot 11 | . . . 1 . . 3 1 1 . . 2 . . 1 . . . . . . . . . . 1 . . . 1 . Weapon Slot 4 | 1 . . 2 . 1 . . . . . . . . . . . . . . . . . . . . . . . . . Core Integrity 20 | 1 . . . . 1 . 2 . . . . . . 1 . 1 . 2 . . . . . . . . . . . 12 Heat Dissipation 15 | 3 . . . . 2 3 . . . . . . . 1 . 1 . . . . . . . . 3 . 2 . . . Energy Generation 1 | . . . . . . . . . . . . . . . . . . 1 . . . . . . . . . . . . Matter Storage 1 | . . . . . . . . . . . . . . . . . . . . . . . . . 1 . . . . . Mass Support 1 | 1 . . . . . . . . . . . . . . . . . . . . . . . . . . . . . . Inventory Capacity 5 | 1 . . . 1 1 1 . . . . . . . . . . . . . . . 1 . . . . . . . . Sight Range 1 | . . . . . . . . . . . . . . 1 . . . . . . . . . . . . . . . . Sensor Range 1 | . . . . . . . . . . . . . . . . . . . . . . . . . 1 . . . . . Terrain Scan Density 3 | . . . . . . 3 . . . . . . . . . . . . . . . . . . . . . . . . Ranged Accuracy 4 | 2 . . . . 1 . . . . . . . . . . 1 . . . . . . . . . . . . . . Hack Attack % 3 | . . . . . . 1 . . . . 1 . . . . . 1 . . . . . . . . . . . . . Hack Defense % 3 | . . . . . . 1 . . . . 1 . . . . . 1 . . . . . . . . . . . . . KI Resistance % 4 | 2 . . . . . 2 . . . . . . . . . . . . . . . . . . . . . . . . TH Resistance % 4 | . . . . . 2 2 . . . . . . . . . . . . . . . . . . . . . . . . TH Damage % 2 | . . . . . . 1 . . . . . . . . . 1 . . . . . . . . . . . . . . Protomatter Created 8541 | . 34 28 33 73 142 586 66 272 . 247 434 376 289 . 121 916 89 156 . . 123 613 238 194 595 510 . 382 820 1204 Integrity Restored 13295 | . 99 111 99 219 426 977 103 478 . 858 834 828 359 . 400 1388 21 263 266 . . 1112 859 485 468 361 96 490 300 1395 Core 10223 | . 79 111 99 219 426 654 76 304 . 632 468 645 160 . 297 909 16 200 195 . . 1094 595 280 367 270 96 379 257 1395 Parts 3072 | . 20 . . . . 323 27 174 . 226 366 183 199 . 103 479 5 63 71 . . 18 264 205 101 91 . 111 43 . Protomatter Decayed 5124 | . . 40 . . . 176 35 174 . 9 245 243 209 . 83 248 154 269 178 67 316 143 . 6 437 116 30 . . 1946 Game ------ Seed CooledDynamicRipper Manual? 1 Play Time 04:09:07 Cumulative 561.7 hours Start 2021.07.08 @ 14:34:28 End 2021.07.08 @ 18:44:34 Sessions 1 Manual Loads 0 Difficulty Rogue Special Mode Winter2019/RPGLIKE Game No. 195 Rogue 195 Adventurer 0 Explorer 0 Win Type - Total 41 Types 24/2/7/4/2/0/1/0/1 Lore% 87 Gallery% 94 Achievement% 83 Wizard Run 0 Options --------- ASCII 0 Keyboard 0 Movement Mouse Keybinds 0 Fullscreen 2 Font 12/Smallcaps Map View 83x54 Tactical HUD 1 Map Filters NONE Filters NONE Steam X RUN: 10dd535b-fd2d-4645-8562-b3a9a4c44318